Workbook

Sheet TOC
B2: # | C2: ="total pts: " & SUM(C3:C64) -> total pts: 70 | D2: a | E2: b | F2: c | G2: d | H2: e | J2: NOTES
A3: Baer.Intro | B3: 1 | C3: 2 | D3: 1 | E3: 0.5 | F3: 0.5 | I3: | | X3: |
A4: KPMG.RegOv | B4: 2 | C4: 1 | D4: 0.25 | E4: 0.5 | F4: 0.25 | I4: | | X4: |
A5: AAA.CrdSc | B5: 3 | C5: 1.75 | D5: 0.75 | E5: 0.5 | F5: 0.5 | I5: | | X5: |
A6: Marshall.Benefits | B6: 4 | C6: 2 | D6: 0.5 | E6: 0.5 | F6: 1 | I6: | | X6: |
A7: Land.Cases | B7: 5 | C7: 2.25 | D7: 0.75 | E7: 0.75 | F7: 0.75 | I7: | | X7: |
A8: Harris.Tort | B8: 6 | C8: 1.75 | D8: 0.25 | E8: 0.75 | F8: 0.25 | G8: 0.5 | I8: | | X8: |
A9: Chev.Agric | B9: 7 | C9: 2.5 | D9: 0.75 | E9: 0.5 | F9: 0.5 | G9: 0.75 | I9: | | X9: |
A10: FA.Dutil | B10: 8 | C10: 3.25 | D10: 0.75 | E10: 0.5 | F10: 1 | G10: 1 | I10: | | X10: |
A11: Morn.Pension | B11: 9 | C11: 1.5 | D11: 0.5 | E11: 0.75 | F11: 0.25 | I11: | | X11: |
A12: ICBC.Affordable | B12: 10 | C12: 1 | D12: 0.5 | E12: 0.5 | I12: | | X12: |
A13: IBC.Flood | B13: 11 | C13: 3.75 | D13: 0.75 | E13: 0.5 | F13: 1 | G13: 1.5 | I13: | | X13: |
A14: CIA.Accting | B14: 12 | C14: 2.25 | D14: 0.75 | E14: 1 | F14: 0.5 | I14: | | X14: |
A15: OSFI.MCT | B15: 13 | C15: 7 | D15: 2 | E15: 4.5 | F15: 0.5 | I15: | | X15: |
A16: CCIR.ARinstr | B16: 14 | C16: 1.25 | D16: 1.25 | I16: | | X16: |
A17: MSA.Ratios | B17: 15 | C17: 2.75 | D17: 0.75 | E17: 1 | F17: 1 | I17: | | X17: |
A18: CCIR.ARinstr | B18: 16 | C18: 2.25 | D18: 2.25 | I18: | | X18: |
A19: OSFI.Eqk | B19: 17 | C19: 2.25 | D19: 1 | E19: 0.5 | F19: 0.75 | I19: | | X19: |
A20: Reinsurance | B20: 18 | C20: 3 | D20: 0.75 | E20: 0.75 | F20: 0.75 | G20: 0.75 | I20: | | X20: |
A21: CIA.DCAT | B21: 19 | C21: 3.5 | D21: 1 | E21: 0.5 | F21: 1 | G21: 1 | I21: | | X21: |
A22: CIA.MfAD | B22: 20 | C22: 3.5 | D22: 1.5 | E22: 0.75 | F22: 1.25 | I22: | | X22: |
A23: BCAR.Cdn | B23: 21 | C23: 1.75 | D23: 0.75 | E23: 0.5 | F23: 0.5 | I23: | | X23: |
A24: CIA.Disclosure, CIA.Runoff, CIA.DIscnt | B24: 22 | C24: 2 | D24: 0.75 | E24: 0.5 | F24: 0.75 | I24: | | X24: |
A25: Feld.RtAgs | B25: 23 | C25: 3 | D25: 0.5 | E25: 0.5 | F25: 1.25 | G25: 0.75 | I25: | | X25: |
A26: OSFI.ORSA | B26: 24 | C26: 2 | D26: 1.5 | E26: 0.5 | I26: | | X26: |
A27: CIA.Models | B27: 25 | C27: 4 | D27: 1.5 | E27: 0.5 | F27: 2 | I27: | | X27: |
A28: CIA.Mat | B28: 26 | C28: 2.25 | D28: 0.5 | E28: 1 | F28: 0.75 | I28: | | X28: |
A29: CIA.Subseq | B29: 27 | C29: 1.75 | D29: 0.25 | E29: 1.5 | I29: | | X29: |
A30: OSFI.AA | B30: 28 | C30: 2.75 | D30: 1 | E30: 1 | F30: 0.75 | I30: | | X30: |
I31: | | X31: |
I32: | | X32: |
I33: | | X33: |
I34: | | X34: |
I35: | | X35: |
I36: | | X36: |
I37: | | X37: |
I38: | | X38: |
I39: | | X39: |
I40: | | X40: |
I41: | | X41: |
I42: | | X42: |
I43: | | X43: |
I44: | | X44: |
I45: | | X45: |
I46: | | X46: |
I47: | | X47: |
I48: | | X48: |
I49: | | X49: |
I50: | | X50: |
I51: | | X51: |
I52: | | X52: |
I53: | | X53: |
I54: | | X54: |
I55: | | X55: |
I56: | | X56: |
I57: | | X57: |
I58: | | X58: |
I59: | | X59: |
I60: | | X60: |
I61: | | X61: |
I62: | | X62: |
I63: | | X63: |
I64: | | X64: |

Sheet 1
A1: Exam: | B1: BattleActs 6C Practice Exam 1 (2018.Fall) | L1: | | M1: Exam: | N1: BattleActs 6C Practice Exam 1 (2018.Fall) - [ANSWER SHEET] | X1: |
A2: Question: | B2: 1 | L2: | | M2: Answer: | N2: =B2 -> 1 | X2: |
A3: Points: | B3: 2 | C3: points | L3: | | M3: Points: | N3: =B3 -> 2 | O3: points | X3: |
L4: | | X4: |
B5: a. | C5: (1 point) | L5: | | M5: Source: | N5: Baer.Intro | X5: |
L6: | | X6: |
C7: Identify 4 areas of Canadian legislation (federal or provincial) that promote the | L7: | | M7: (1 point) | N7: a. | O7: This is a standard question that has been asked many times. [Hint: CIRCA-F]. Any 4 of: | X7: |
C8: financial soundness of insurance companies. | L8: | | X8: |
L9: | | O9: CREATION: oversee creation of (domestic) & licensing (foreign) of insurers | X9: |
B10: b. | C10: (0.5 points) | L10: | | O10: INVESTMENTS: restrictions on types of investments that are permitted (to reduce risk) | X10: |
L11: | | O11: RATING: authorization of rating bureaus for info-sharing | X11: |
C12: Define the principle of 'indemnity'. | L12: | | O12: COMPLIANCE: give Govt depts authority to enforce compliance with legislation | X12: |
L13: | | O13: ADEQUACY: create boards to oversee and ensure adequacy of rates | X13: |
B14: c. | C14: (0.5 points) | L14: | | O14: FILE F/S: require regular filing of Financial Statements | X14: |
L15: | | X15: |
C16: Is a life insurance policy an 'indemnity' policy? Explain. | L16: | | M16: (0.5 points) | N16: b. | O16: - after covered loss, return insured to former financial position (before loss), and neither | X16: |
L17: | | O17: penalize nor reward | X17: |
L18: | | O18: (This is different from a contract of indemnity, which is: a contract where the amount | X18: |
L19: | | O19: recoverable is measured by the insured's pecuniary loss.) | X19: |
L20: | | X20: |
L21: | | X21: |
L22: | | M22: (0.5 points) | N22: c. | O22: - no, because a loss of life cannot be indemnified | X22: |
L23: | | O23: - life insurance is a contract that pays a certain sum upon death (irrespective of pecuniary | X23: |
L24: | | O24: loss) | X24: |
L25: | | X25: |
L26: | | X26: |
L27: | | X27: |
L28: | | X28: |
L29: | | X29: |
L30: | | X30: |
L31: | | X31: |
L32: | | X32: |
L33: | | X33: |
L34: | | X34: |
L35: | | X35: |
L36: | | X36: |
L37: | | X37: |
L38: | | X38: |
L39: | | X39: |
L40: | | X40: |
L41: | | X41: |
L42: | | X42: |
L43: | | X43: |
L44: | | X44: |
L45: | | X45: |
L46: | | X46: |
L47: | | X47: |
A48: ---- | B48: ---- | C48: ---- | D48: ---- | E48: ---- | F48: ---- | G48: ---- | H48: ---- | I48: ---- | J48: ---- | K48: ---- | L48: | | M48: ---- | N48: ---- | O48: ---- | P48: ---- | Q48: ---- | R48: ---- | S48: ---- | T48: ---- | U48: ---- | V48: ---- | W48: ---- | X48: |
L49: | | X49: |
L50: | | X50: |
L51: | | X51: |
L52: | | X52: |
L53: | | X53: |
L54: | | X54: |
L55: | | X55: |
L56: | | X56: |
L57: | | X57: |
L58: | | X58: |
L59: | | X59: |
L60: | | X60: |
L61: | | X61: |
L62: | | X62: |
L63: | | X63: |
L64: | | X64: |
L65: | | X65: |
L66: | | X66: |
L67: | | X67: |
L68: | | X68: |
L69: | | X69: |
L70: | | X70: |
L71: | | X71: |
L72: | | X72: |
L73: | | X73: |
L74: | | X74: |
L75: | | X75: |
L76: | | X76: |
L77: | | X77: |
L78: | | X78: |
L79: | | X79: |
L80: | | X80: |
L81: | | X81: |
L82: | | X82: |
L83: | | X83: |
L84: | | X84: |
L85: | | X85: |
L86: | | X86: |
L87: | | X87: |
L88: | | X88: |
L89: | | X89: |
L90: | | X90: |
L91: | | X91: |
L92: | | X92: |
L93: | | X93: |
L94: | | X94: |
A95: ---- | B95: ---- | C95: ---- | D95: ---- | E95: ---- | F95: ---- | G95: ---- | H95: ---- | I95: ---- | J95: ---- | K95: ---- | L95: | | M95: ---- | N95: ---- | O95: ---- | P95: ---- | Q95: ---- | R95: ---- | S95: ---- | T95: ---- | U95: ---- | V95: ---- | W95: ---- | X95: |

Sheet 2
A1: Exam: | B1: BattleActs 6C Practice Exam 1 (2018.Fall) | L1: | | M1: Exam: | N1: BattleActs 6C Practice Exam 1 (2018.Fall) - [ANSWER SHEET] | X1: |
A2: Question: | B2: 2 | L2: | | M2: Answer: | N2: =B2 -> 2 | X2: |
A3: Points: | B3: 1 | C3: points | L3: | | M3: Points: | N3: =B3 -> 1 | O3: points | X3: |
L4: | | X4: |
B5: a. | C5: (0.25 points) | L5: | | M5: Source: | N5: KPMG.RegOv | X5: |
L6: | | X6: |
C7: Describe the 'prior approval' rate regulatory approach. | L7: | | M7: (0.25 points) | N7: a. | O7: prior approval: | X7: |
L8: | | O8: - insurer approves (Rates, Rate Changes, Risk Classification) before use | X8: |
B9: b. | C9: (0.5 points) | L9: | | X9: |
L10: | | M10: (0.5 points) | N10: b. | O10: use & file | X10: |
C11: Describe the 'use & file' rate regulatory approach. | L11: | | O11: - insurer uses (Rates, Rate Changes, Risk Classification) then files with regulators | X11: |
L12: | | O12: - regulators can retroactively change rates within a certain period | X12: |
B13: c. | C13: (0.25 points) | L13: | | X13: |
L14: | | M14: (0.25 points) | N14: c. | O14: open competition | X14: |
C15: Identify the rate regulatory approach used in Nunavut & Yukon. | L15: | | X15: |
L16: | | X16: |
L17: | | X17: |
L18: | | X18: |
L19: | | X19: |
L20: | | X20: |
L21: | | X21: |
L22: | | X22: |
L23: | | X23: |
L24: | | X24: |
L25: | | X25: |
L26: | | X26: |
L27: | | X27: |
L28: | | X28: |
L29: | | X29: |
L30: | | X30: |
L31: | | X31: |
L32: | | X32: |
L33: | | X33: |
L34: | | X34: |
L35: | | X35: |
L36: | | X36: |
L37: | | X37: |
L38: | | X38: |
L39: | | X39: |
L40: | | X40: |
L41: | | X41: |
L42: | | X42: |
L43: | | X43: |
L44: | | X44: |
L45: | | X45: |
L46: | | X46: |
L47: | | X47: |
A48: ---- | B48: ---- | C48: ---- | D48: ---- | E48: ---- | F48: ---- | G48: ---- | H48: ---- | I48: ---- | J48: ---- | K48: ---- | L48: | | M48: ---- | N48: ---- | O48: ---- | P48: ---- | Q48: ---- | R48: ---- | S48: ---- | T48: ---- | U48: ---- | V48: ---- | W48: ---- | X48: |
L49: | | X49: |
L50: | | X50: |
L51: | | X51: |
L52: | | X52: |
L53: | | X53: |
L54: | | X54: |
L55: | | X55: |
L56: | | X56: |
L57: | | X57: |
L58: | | X58: |
L59: | | X59: |
L60: | | X60: |
L61: | | X61: |
L62: | | X62: |
L63: | | X63: |
L64: | | X64: |
L65: | | X65: |
L66: | | X66: |
L67: | | X67: |
L68: | | X68: |
L69: | | X69: |
L70: | | X70: |
L71: | | X71: |
L72: | | X72: |
L73: | | X73: |
L74: | | X74: |
L75: | | X75: |
L76: | | X76: |
L77: | | X77: |
L78: | | X78: |
L79: | | X79: |
L80: | | X80: |
L81: | | X81: |
L82: | | X82: |
L83: | | X83: |
L84: | | X84: |
L85: | | X85: |
L86: | | X86: |
L87: | | X87: |
L88: | | X88: |
L89: | | X89: |
L90: | | X90: |
L91: | | X91: |
L92: | | X92: |
L93: | | X93: |
L94: | | X94: |
A95: ---- | B95: ---- | C95: ---- | D95: ---- | E95: ---- | F95: ---- | G95: ---- | H95: ---- | I95: ---- | J95: ---- | K95: ---- | L95: | | M95: ---- | N95: ---- | O95: ---- | P95: ---- | Q95: ---- | R95: ---- | S95: ---- | T95: ---- | U95: ---- | V95: ---- | W95: ---- | X95: |

Sheet 3
A1: Exam: | B1: BattleActs 6C Practice Exam 1 (2018.Fall) | L1: | | M1: Exam: | N1: BattleActs 6C Practice Exam 1 (2018.Fall) - [ANSWER SHEET] | X1: |
A2: Question: | B2: 3 | L2: | | M2: Answer: | N2: =B2 -> 3 | X2: |
A3: Points: | B3: 1.75 | C3: points | L3: | | M3: Points: | N3: =B3 -> 1.75 | O3: points | X3: |
L4: | | X4: |
B5: a. | C5: (0.75 points) | L5: | | M5: Source: | N5: AAA.CrdSc | X5: |
L6: | | X6: |
C7: Identify 3 uses of credit scores by insurers. | L7: | | M7: (0.75 points) | N7: a. | O7: - as an U/W criterion | X7: |
L8: | | O8: - as a rating variable | X8: |
B9: b. | C9: (0.5 points) | L9: | | O9: - for assignment to tiers (and/or RSPs or FARM) | X9: |
L10: | | X10: |
C11: Provide 1 argument in favour of using credit scores and 1 argument against. | L11: | | M11: (0.5 points) | N11: b. | O11: for (1 of these): | X11: |
L12: | | O12: - credit scores are statistically significant | X12: |
B13: c. | C13: (0.5 points) | L13: | | O13: - credit scores won't change aggregate premium | X13: |
L14: | | O14: against (1 of these): | X14: |
C15: Identify a concern a regulator may have about an insurer's use of credit scores in an | L15: | | O15: - credit scores are unfairly discriminatory (poor families, recent immigrants) | X15: |
C16: economic downturn, and identify a response an actuary might provide that addresses | L16: | | O16: - credit scores may violate privacy | X16: |
C17: the concern. | L17: | | X17: |
L18: | | M18: (0.5 points) | N18: c. | O18: potential concern (1 of these): | X18: |
L19: | | O19: - unwarranted increase in aggregate premium | X19: |
L20: | | O20: - distributional shift in individual premiums that doesn't reflect true cost differences | X20: |
L21: | | O21: actuary's response (1 of these): | X21: |
L22: | | O22: - apply an off-balance factor to leave aggregate premium unchanged | X22: |
L23: | | O23: - stop using credit scores OR redo classification analysis once data has stabilized | X23: |
L24: | | X24: |
L25: | | X25: |
L26: | | X26: |
L27: | | X27: |
L28: | | X28: |
L29: | | X29: |
L30: | | X30: |
L31: | | X31: |
L32: | | X32: |
L33: | | X33: |
L34: | | X34: |
L35: | | X35: |
L36: | | X36: |
L37: | | X37: |
L38: | | X38: |
L39: | | X39: |
L40: | | X40: |
L41: | | X41: |
L42: | | X42: |
L43: | | X43: |
L44: | | X44: |
L45: | | X45: |
L46: | | X46: |
L47: | | X47: |
A48: ---- | B48: ---- | C48: ---- | D48: ---- | E48: ---- | F48: ---- | G48: ---- | H48: ---- | I48: ---- | J48: ---- | K48: ---- | L48: | | M48: ---- | N48: ---- | O48: ---- | P48: ---- | Q48: ---- | R48: ---- | S48: ---- | T48: ---- | U48: ---- | V48: ---- | W48: ---- | X48: |
L49: | | X49: |
L50: | | X50: |
L51: | | X51: |
L52: | | X52: |
L53: | | X53: |
L54: | | X54: |
L55: | | X55: |
L56: | | X56: |
L57: | | X57: |
L58: | | X58: |
L59: | | X59: |
L60: | | X60: |
L61: | | X61: |
L62: | | X62: |
L63: | | X63: |
L64: | | X64: |
L65: | | X65: |
L66: | | X66: |
L67: | | X67: |
L68: | | X68: |
L69: | | X69: |
L70: | | X70: |
L71: | | X71: |
L72: | | X72: |
L73: | | X73: |
L74: | | X74: |
L75: | | X75: |
L76: | | X76: |
L77: | | X77: |
L78: | | X78: |
L79: | | X79: |
L80: | | X80: |
L81: | | X81: |
L82: | | X82: |
L83: | | X83: |
L84: | | X84: |
L85: | | X85: |
L86: | | X86: |
L87: | | X87: |
L88: | | X88: |
L89: | | X89: |
L90: | | X90: |
L91: | | X91: |
L92: | | X92: |
L93: | | X93: |
L94: | | X94: |
A95: ---- | B95: ---- | C95: ---- | D95: ---- | E95: ---- | F95: ---- | G95: ---- | H95: ---- | I95: ---- | J95: ---- | K95: ---- | L95: | | M95: ---- | N95: ---- | O95: ---- | P95: ---- | Q95: ---- | R95: ---- | S95: ---- | T95: ---- | U95: ---- | V95: ---- | W95: ---- | X95: |

Sheet 4
A1: Exam: | B1: BattleActs 6C Practice Exam 1 (2018.Fall) | L1: | | M1: Exam: | N1: BattleActs 6C Practice Exam 1 (2018.Fall) - [ANSWER SHEET] | X1: |
A2: Question: | B2: 4 | L2: | | M2: Answer: | N2: =B2 -> 4 | X2: |
A3: Points: | B3: 2 | C3: points | L3: | | M3: Points: | N3: =B3 -> 2 | O3: points | X3: |
L4: | | X4: |
B5: a. | C5: (0.5 points) | L5: | | M5: Source: | N5: Marshall.Benefits | X5: |
L6: | | X6: |
C7: Identify the 2 components of auto insurance benefits in Ontario. | L7: | | M7: (0.5 points) | N7: a. | O7: - no-fault or accident benefits | X7: |
L8: | | O8: - tort or bodily injury | X8: |
B9: b. | C9: (0.5 points) | L9: | | X9: |
L10: | | M10: (0.5 points) | N10: b. | O10: Any 1 of: [Hint: CLEV] | X10: |
C11: According to the Marshall reading, "Fair Benefits Fairly Delivered", the benefits | L11: | | O11: Cost control at the expense of care | X11: |
C12: in Ontario auto insurance are not delivered fairly. Briefly describe 1 reason for this. | L12: | | O12: - insurers emphasize control at the expense of care, but victims don't recover so final | X12: |
L13: | | O13: cost is higher not lower | X13: |
B14: c. | C14: (1 point) | L14: | | O14: Lawyers | X14: |
L15: | | O15: - lawyers' contingency fees are a percent of the settlement, so lawyers seek higher | X15: |
C16: Ontario has a 5-point Action Plan to address the unfair delivery of benefits in Ontario. | L16: | | O16: settlements not better care for victims | X16: |
C17: Briefly describe 2 points in this plan. | L17: | | O17: Entitlements | X17: |
L18: | | O18: - victims seek to maximize entitlements versus addressing own care needs | X18: |
L19: | | O19: Volume | X19: |
L20: | | O20: - providers are paid on volume of treatment, not results | X20: |
L21: | | X21: |
L22: | | M22: (1.0 point) | N22: c. | O22: Any 2 of: | X22: |
L23: | | O23: structural flaws | X23: |
L24: | | O24: - fix structural flaws by appointing an arms-length regulator with powers to enact | X24: |
L25: | | O25: policies & procedures | X25: |
L26: | | O26: catastrophic injuries | X26: |
L27: | | O27: - change compensation system for catastrophic injuries because lawyers are taking too | X27: |
L28: | | O28: big a chunk | X28: |
L29: | | O29: care not cash | X29: |
L30: | | O30: - focus on timely, appropriate medical care, not cash payouts | X30: |
L31: | | O31: lawyers | X31: |
L32: | | O32: - make contingency fees transparent | X32: |
L33: | | O33: smart regulation | X33: |
L34: | | O34: - allow insurers more regulatory freedom to compete on price & service | X34: |
L35: | | X35: |
L36: | | X36: |
L37: | | X37: |
L38: | | X38: |
L39: | | X39: |
L40: | | X40: |
L41: | | X41: |
L42: | | X42: |
L43: | | X43: |
L44: | | X44: |
L45: | | X45: |
L46: | | X46: |
L47: | | X47: |
A48: ---- | B48: ---- | C48: ---- | D48: ---- | E48: ---- | F48: ---- | G48: ---- | H48: ---- | I48: ---- | J48: ---- | K48: ---- | L48: | | M48: ---- | N48: ---- | O48: ---- | P48: ---- | Q48: ---- | R48: ---- | S48: ---- | T48: ---- | U48: ---- | V48: ---- | W48: ---- | X48: |
L49: | | X49: |
L50: | | X50: |
L51: | | X51: |
L52: | | X52: |
L53: | | X53: |
L54: | | X54: |
L55: | | X55: |
L56: | | X56: |
L57: | | X57: |
L58: | | X58: |
L59: | | X59: |
L60: | | X60: |
L61: | | X61: |
L62: | | X62: |
L63: | | X63: |
L64: | | X64: |
L65: | | X65: |
L66: | | X66: |
L67: | | X67: |
L68: | | X68: |
L69: | | X69: |
L70: | | X70: |
L71: | | X71: |
L72: | | X72: |
L73: | | X73: |
L74: | | X74: |
L75: | | X75: |
L76: | | X76: |
L77: | | X77: |
L78: | | X78: |
L79: | | X79: |
L80: | | X80: |
L81: | | X81: |
L82: | | X82: |
L83: | | X83: |
L84: | | X84: |
L85: | | X85: |
L86: | | X86: |
L87: | | X87: |
L88: | | X88: |
L89: | | X89: |
L90: | | X90: |
L91: | | X91: |
L92: | | X92: |
L93: | | X93: |
L94: | | X94: |
A95: ---- | B95: ---- | C95: ---- | D95: ---- | E95: ---- | F95: ---- | G95: ---- | H95: ---- | I95: ---- | J95: ---- | K95: ---- | L95: | | M95: ---- | N95: ---- | O95: ---- | P95: ---- | Q95: ---- | R95: ---- | S95: ---- | T95: ---- | U95: ---- | V95: ---- | W95: ---- | X95: |

Sheet 5
A1: Exam: | B1: BattleActs 6C Practice Exam 1 (2018.Fall) | L1: | | M1: Exam: | N1: BattleActs 6C Practice Exam 1 (2018.Fall) - [ANSWER SHEET] | X1: |
A2: Question: | B2: 5 | L2: | | M2: Answer: | N2: =B2 -> 5 | X2: |
A3: Points: | B3: 2.25 | C3: points | L3: | | M3: Points: | N3: =B3 -> 2.25 | O3: points | X3: |
L4: | | X4: |
B5: In each of the following scenarios, explain a likely outcome for the insurance company and cite | L5: | | M5: Source: | N5: Land.Cases | X5: |
B6: any relevant precendents used to support the conclusion drawn. | L6: | | X6: |
L7: | | M7: (0.75 points) | N7: a. | O7: likely outcome: | Q7: - insurer has no duty to defend | X7: |
B8: a. | C8: (0.75 points) | L8: | | O8: precedent: | Q8: - Precision Plating v Axa Pacific Insurance | X8: |
L9: | | O9: explanation: | Q9: - the neighbour's claims were for contamination, not fire, and therefore | X9: |
C10: The insured, a farmer, suffers a lightning strike to his property causing a tree to fall onto | L10: | | Q10: not covered by the farmer's policy | X10: |
C11: a storage shed containing barrels of undiluted pesticides. The barrels are damaged and | L11: | | X11: |
C12: pesticide spills onto a neighbouring property, although the neighbour's property was not | L12: | | M12: (0.75 points) | N12: b. | O12: likely outcome: | Q12: - insurer has no duty to defend | X12: |
C13: directly damaged by the fire. Assuming the farmer's insurance policy covers fire, | L13: | | O13: precedent: | Q13: - Sansalone v Wawanesa | X13: |
C14: lightning, windstorm, etc…, does his insurer have a duty to defend his neighbour's claim of | L14: | | O14: explanation: | Q14: - the driver's actions were intentional and injury was natural and | X14: |
C15: contamination from the pesticides? | L15: | | Q15: probable so there was INTENT to cause injury | X15: |
L16: | | Q16: - intentional injury is excluded by the policy | X16: |
B17: b. | C17: (0.75 points) | L17: | | X17: |
L18: | | M18: (0.75 points) | N18: c. | O18: likely outcome: | Q18: - insurer has no duty to defend | X18: |
C19: A male limousine driver in Victoria, BC, is accused of sexually abusing a female passenger | L19: | | O19: precedent: | Q19: - Nichols v American Home Assurance | X19: |
C20: during a birthday party. The driver mistakenly believed consent had been given and wants | L20: | | O20: explanation: | Q20: - since indemnification for fraud isn't covered by a professional | X20: |
C21: the limousine company's insurer to defend him against the passenger's claim of abuse. | L21: | | Q21: liability policy, there is no duty to defend | X21: |
C22: Is the insurer obligated to defend him? | L22: | | Q22: - duty to defend is TRIGGERED by duty to indemnify, and there is no | X22: |
L23: | | Q23: duty to indemnify | X23: |
B24: c. | C24: (0.75 points) | L24: | | X24: |
L25: | | X25: |
C26: A banker was accused of fraud in a money-laundering scheme, and wants | L26: | | X26: |
C27: her professional liability insurer to defend her in court. Is her insurer obligated to | L27: | | X27: |
C28: defend her? | L28: | | X28: |
L29: | | X29: |
L30: | | X30: |
L31: | | X31: |
L32: | | X32: |
L33: | | X33: |
L34: | | X34: |
L35: | | X35: |
L36: | | X36: |
L37: | | X37: |
L38: | | X38: |
L39: | | X39: |
L40: | | X40: |
L41: | | X41: |
L42: | | X42: |
L43: | | X43: |
L44: | | X44: |
L45: | | X45: |
L46: | | X46: |
L47: | | X47: |
A48: ---- | B48: ---- | C48: ---- | D48: ---- | E48: ---- | F48: ---- | G48: ---- | H48: ---- | I48: ---- | J48: ---- | K48: ---- | L48: | | M48: ---- | N48: ---- | O48: ---- | P48: ---- | Q48: ---- | R48: ---- | S48: ---- | T48: ---- | U48: ---- | V48: ---- | W48: ---- | X48: |
L49: | | X49: |
L50: | | X50: |
L51: | | X51: |
L52: | | X52: |
L53: | | X53: |
L54: | | X54: |
L55: | | X55: |
L56: | | X56: |
L57: | | X57: |
L58: | | X58: |
L59: | | X59: |
L60: | | X60: |
L61: | | X61: |
L62: | | X62: |
L63: | | X63: |
L64: | | X64: |
L65: |
L66: |
L67: |
L68: |
L69: |
L70: |
L71: |
L72: |
L73: |
L74: |
L75: |
L76: |
L77: |
L78: |
L79: |
L80: |
L81: |
L82: |
L83: |
L84: |
L85: |
L86: |
L87: |
L88: |
L89: |
L90: |
L91: |
L92: |
L93: |
L94: |
A95: ---- | B95: ---- | C95: ---- | D95: ---- | E95: ---- | F95: ---- | G95: ---- | H95: ---- | I95: ---- | J95: ---- | K95: ---- | L95: | | M95: ---- | N95: ---- | O95: ---- | P95: ---- | Q95: ---- | R95: ---- | S95: ---- | T95: ---- | U95: ---- | V95: ---- | W95: ---- | X95: |

Sheet 6
A1: Exam: | B1: BattleActs 6C Practice Exam 1 (2018.Fall) | L1: | | M1: Exam: | N1: BattleActs 6C Practice Exam 1 (2018.Fall) - [ANSWER SHEET] | X1: |
A2: Question: | B2: 6 | L2: | | M2: Answer: | N2: =B2 -> 6 | X2: |
A3: Points: | B3: 1.75 | C3: points | L3: | | M3: Points: | N3: =B3 -> 1.75 | O3: points | X3: |
L4: | | X4: |
B5: a. | C5: (0.25 points) | L5: | | M5: Source: | N5: Harris.Tort | X5: |
L6: | | X6: |
C7: Define 'joint and several liability'. | L7: | | M7: (0.25 points) | N7: a. | O7: plaintiff may recover any or all damages from any or all the defendants | X7: |
L8: | | X8: |
B9: b. | C9: (0.75 points) | L9: | | M9: (0.75 points) | N9: b. | O9: Hint: ERF | X9: |
L10: | | O10: Eliminate joint and several liability | X10: |
C11: Describe a proposed tort reform for joint and several liability | L11: | | O11: Replace with proportionate liability | X11: |
L12: | | O12: create a Fund for guilty parties who can't pay | X12: |
B13: c. | C13: (0.25 points) | L13: | | X13: |
L14: | | M14: (0.25 points) | N14: c. | O14: evidence of plaintiff's collateral source need not be entered at trial | X14: |
C15: Define the 'collateral source rule'. | L15: | | X15: |
L16: | | M16: (0.5 points) | N16: d. | O16: - eliminate the rule so that collateral sources can be taken into account when | X16: |
B17: d. | C17: (0.5 points) | L17: | | O17: determining award | X17: |
L18: | | O18: - advantage is that elimination reduces the likelihood of over-compensation | X18: |
C19: Briefly describe a proposed tort reform for the collateral source rule, and state 1 | L19: | | X19: |
C20: advantage for the reform. | L20: | | X20: |
L21: | | X21: |
L22: | | X22: |
L23: | | X23: |
L24: | | X24: |
L25: | | X25: |
L26: | | X26: |
L27: | | X27: |
L28: | | X28: |
L29: | | X29: |
L30: | | X30: |
L31: | | X31: |
L32: | | X32: |
L33: | | X33: |
L34: | | X34: |
L35: | | X35: |
L36: | | X36: |
L37: | | X37: |
L38: | | X38: |
L39: | | X39: |
L40: | | X40: |
L41: | | X41: |
L42: | | X42: |
L43: | | X43: |
L44: | | X44: |
L45: | | X45: |
L46: | | X46: |
L47: | | X47: |
A48: ---- | B48: ---- | C48: ---- | D48: ---- | E48: ---- | F48: ---- | G48: ---- | H48: ---- | I48: ---- | J48: ---- | K48: ---- | L48: | | M48: ---- | N48: ---- | O48: ---- | P48: ---- | Q48: ---- | R48: ---- | S48: ---- | T48: ---- | U48: ---- | V48: ---- | W48: ---- | X48: |
L49: | | X49: |
L50: | | X50: |
L51: | | X51: |
L52: | | X52: |
L53: | | X53: |
L54: | | X54: |
L55: | | X55: |
L56: | | X56: |
L57: | | X57: |
L58: | | X58: |
L59: | | X59: |
L60: | | X60: |
L61: | | X61: |
L62: | | X62: |
L63: | | X63: |
L64: | | X64: |
L65: | | X65: |
L66: | | X66: |
L67: | | X67: |
L68: | | X68: |
L69: | | X69: |
L70: | | X70: |
L71: | | X71: |
L72: | | X72: |
L73: | | X73: |
L74: | | X74: |
L75: | | X75: |
L76: | | X76: |
L77: | | X77: |
L78: | | X78: |
L79: | | X79: |
L80: | | X80: |
L81: | | X81: |
L82: | | X82: |
L83: | | X83: |
L84: | | X84: |
L85: | | X85: |
L86: | | X86: |
L87: | | X87: |
L88: | | X88: |
L89: | | X89: |
L90: | | X90: |
L91: | | X91: |
L92: | | X92: |
L93: | | X93: |
L94: | | X94: |
A95: ---- | B95: ---- | C95: ---- | D95: ---- | E95: ---- | F95: ---- | G95: ---- | H95: ---- | I95: ---- | J95: ---- | K95: ---- | L95: | | M95: ---- | N95: ---- | O95: ---- | P95: ---- | Q95: ---- | R95: ---- | S95: ---- | T95: ---- | U95: ---- | V95: ---- | W95: ---- | X95: |

Sheet 7
A1: Exam: | B1: BattleActs 6C Practice Exam 1 (2018.Fall) | L1: | | M1: Exam: | N1: BattleActs 6C Practice Exam 1 (2018.Fall) - [ANSWER SHEET] | X1: |
A2: Question: | B2: 7 | L2: | | M2: Answer: | N2: =B2 -> 7 | X2: |
A3: Points: | B3: 2.5 | C3: points | L3: | | M3: Points: | N3: =B3 -> 2.5 | O3: points | X3: |
L4: | | X4: |
B5: An agricultural producer insures the production of corn under a plan with the | L5: | | M5: Source: | N5: Chev.Agric | X5: |
B6: following details: | L6: | | X6: |
L7: | | M7: (0.75 points) | N7: a. | O7: agricultural insurance: | R7: - protects against production loss | X7: |
C8: area of crop: | E8: 40 hectares | L8: | | O8: agricultural stability: | R8: - protects against margin decline | X8: |
C9: probable yield: | E9: 14,000 kg/ha | L9: | | O9: agricultural recovery: | R9: - protects against disaster | X9: |
C10: coverage level: | E10: 0.75 | L10: | | X10: |
C11: insured price: | E11: $0.24/kg | L11: | | M11: (0.5 points) | N11: b. | O11: A = Area | R11: PG = Production Guarantee | X11: |
L12: | | O12: P = Probable Yield | R12: AP = Actual Production | X12: |
B13: a. | C13: (0.75 points) | L13: | | O13: C = Coverage Level | X13: |
L14: | | X14: |
C15: Growing Forward 2 is a comprehensive federal-provincial-territorial framework for Canada's | L15: | | O15: PG | R15: Indemnity | X15: |
C16: agricultural sector. It consists of 6 Business Risk Management Programmes. Briefly describe | L16: | | O16: = A x P x C | R16: = max(0, PG - AP) x (insured price) | X16: |
C17: 3 Business Risk Management Programmes that could protect this producer against crop | L17: | | O17: = 40 x 14,000 x 75% | R17: = max(0, 420000 - 350000) x 0.24 | X17: |
C18: losses or a drop in the price of the crop. | L18: | | O18: = 420,000 | R18: = 16,800 | X18: |
L19: | | X19: |
B20: b. | C20: (0.5 points) | L20: | | M20: (0.5 points) | N20: c. | O20: i | P20: to reflect current production capability | X20: |
L21: | | O21: ii | P21: Any 1 of: | X21: |
C22: If the actual production of corn in a particular year is 350,000 kg, calculate the idemnity | L22: | | P22: - change in farming or management practices | X22: |
C23: paid to the producer. | L23: | | P23: - change in insurance programme design | X23: |
L24: | | P24: - change in data source or data collection technique | X24: |
B25: c. | C25: (0.5 points) | L25: | | P25: - maturity of perennials (yield would vary of their life cycle) | X25: |
L26: | | P26: - quality variation of crop from year-to-year (possibly due to insured perils) | X26: |
C27: To calculate probable yield for insurance purposes, we normally use an average of | L27: | | X27: |
C28: historical yields. Sometimes, however, historical yields need to be adjusted. | L28: | | M28: (0.75 points) | N28: d. | O28: i | P28: a load in rates to recover deficits and maintain surplus | X28: |
C29: i | D29: What is the general purpose of such a historical adjustment? | L29: | | O29: ii | P29: FOR ALL base & adverse scenarios with: | X29: |
C30: ii | D30: Identify a specific reason for a historical adjustment. | L30: | | P30: initial deficit = 6th yr, 95th percentile | X30: |
L31: | | P31: MUST RECOVER DEFICIT: | X31: |
B32: d. | C32: (0.75 points) | L32: | | P32: - in 15 years on average | X32: |
L33: | | P33: - in 25 years with 80% probability | X33: |
C34: It is important for agricultural insurance to be self-sustainable. | L34: | | X34: |
C35: i | D35: Define the term 'self-sustainability load'. | L35: | | X35: |
C36: ii | D36: What is the statistical definition of 'self-sustainability'? | L36: | | X36: |
L37: | | X37: |
L38: | | X38: |
L39: | | X39: |
L40: | | X40: |
L41: | | X41: |
L42: | | X42: |
L43: | | X43: |
L44: | | X44: |
L45: | | X45: |
L46: | | X46: |
L47: | | X47: |
A48: ---- | B48: ---- | C48: ---- | D48: ---- | E48: ---- | F48: ---- | G48: ---- | H48: ---- | I48: ---- | J48: ---- | K48: ---- | L48: | | M48: ---- | N48: ---- | O48: ---- | P48: ---- | Q48: ---- | R48: ---- | S48: ---- | T48: ---- | U48: ---- | V48: ---- | W48: ---- | X48: |
L49: | | X49: |
L50: | | X50: |
L51: | | X51: |
L52: | | X52: |
L53: | | X53: |
L54: | | X54: |
L55: | | X55: |
L56: | | X56: |
L57: | | X57: |
L58: | | X58: |
L59: | | X59: |
L60: | | X60: |
L61: | | X61: |
L62: | | X62: |
L63: | | X63: |
L64: | | X64: |
L65: |
L66: |
L67: |
L68: |
L69: |
L70: |
L71: |
L72: |
L73: |
L74: |
L75: |
L76: |
L77: |
L78: |
L79: |
L80: |
L81: |
L82: |
L83: |
L84: |
L85: |
L86: |
L87: |
L88: |
L89: |
L90: |
L91: |
L92: |
L93: |
L94: |
A95: ---- | B95: ---- | C95: ---- | D95: ---- | E95: ---- | F95: ---- | G95: ---- | H95: ---- | I95: ---- | J95: ---- | K95: ---- | L95: | | M95: ---- | N95: ---- | O95: ---- | P95: ---- | Q95: ---- | R95: ---- | S95: ---- | T95: ---- | U95: ---- | V95: ---- | W95: ---- | X95: |

Sheet 8
A1: Exam: | B1: BattleActs 6C Practice Exam 1 (2018.Fall) | L1: | | M1: Exam: | N1: BattleActs 6C Practice Exam 1 (2018.Fall) - [ANSWER SHEET] | X1: |
A2: Question: | B2: 8 | L2: | | M2: Answer: | N2: =B2 -> 8 | X2: |
A3: Points: | B3: 3.25 | C3: points | L3: | | M3: Points: | N3: =B3 -> 3.25 | O3: points | X3: |
L4: | | X4: |
B5: a. | C5: (0.75 points) | L5: | | M5: Source: | N5: FA.Dutil | X5: |
L6: | | X6: |
C7: Briefly describe the origin, role, and goal of Facility Association. | L7: | | M7: (0.75 points) | N7: a. | O7: origin: | P7: - created by the insurance industry as an unincorporated non-profit of all | X7: |
L8: | | P8: auto insurers | X8: |
B9: b. | C9: (0.5 points) | L9: | | O9: role: | P9: - administers residual market mechanisms: FARM, RSPs, UAF | X9: |
L10: | | O10: goal: | P10: - ensure (auto insurance availability) for (all owners & licensed drivers) | X10: |
C11: Briefly describe 2 functions of the Facility Association Board of Directors. | L11: | | P11: unable (to obtain coverage through the voluntary market) | X11: |
L12: | | X12: |
B13: c. | C13: (1 point) | L13: | | M13: (0.5 points) | N13: b. | O13: Any 2 of: | X13: |
L14: | | O14: rate changes: | Q14: - approve rate changes and filings | X14: |
C15: Compare and contrast FARM and RSPs with respect to: | L15: | | O15: expenses: | Q15: - authorize expenses | X15: |
C16: i | D16: rates | L16: | | O16: standards: | Q16: - establish standards for servicing carriers and RSP users | X16: |
C17: ii | D17: customer knowledge | L17: | | O17: committees: | Q17: - appoint committees and subcommittees | X17: |
L18: | | X18: |
B19: d. | C19: (1 point) | L19: | | M19: (1 point) | N19: c. | O19: rates: | X19: |
L20: | | O20: FARM: | P20: - uses rates set by FA | X20: |
C21: Given the folowing information, calculate the company's loss ratio on their share | L21: | | O21: RSPs: | P21: - uses rates of ceding company | X21: |
C22: of the pool. Assume a provincial expense allowance (PEA) of 25%. | L22: | | X22: |
L23: | | O23: customer knowledge: | X23: |
H24: company | I24: province | L24: | | O24: FARM: | P24: - yes, customer knows they've been placed with FA | X24: |
C25: direct earned exposures not ceded to the RSP | H25: 1000 | I25: 20000 | L25: | | O25: RSPs: | P25: - customer does NOT know they've been ceded to a RSP | X25: |
C26: direct earned premium ceded to the RSP | H26: 48000 | I26: 600000 | L26: | | X26: |
C27: total incurred losses ceded to the RSP | H27: n/a | I27: 950000 | L27: | | M27: (1 point) | N27: d. | O27: First calculate the participation ratio PR: | X27: |
L28: | | O28: = (company ceded exposures) / (province ceded exposures) | X28: |
L29: | | O29: = 1,000 / 20,000 | X29: |
L30: | | O30: = 5% | X30: |
L31: | | X31: |
L32: | | O32: Now, the company's share of the losses is | X32: |
L33: | | O33: = (province ceded losses) x PR | X33: |
L34: | | O34: = 950,000 x 5% | X34: |
L35: | | O35: = 47,500 | X35: |
L36: | | X36: |
L37: | | O37: And the company's share of the premium is | X37: |
L38: | | O38: = (province ceded premiums) x PR + (company ceded premium) x PEA | X38: |
L39: | | O39: = 600,000 x 5% + 48,000 x 25% | X39: |
L40: | | O40: = 42,000 | X40: |
L41: | | X41: |
L42: | | O42: Putting it all together, the loss ratio is | X42: |
L43: | | O43: = (company's share of losses) / (company's share of premium) | X43: |
L44: | | O44: = 47,500 / 42,000 | X44: |
L45: | | O45: = 113.1% | X45: |
L46: | | X46: |
L47: | | X47: |
A48: ---- | B48: ---- | C48: ---- | D48: ---- | E48: ---- | F48: ---- | G48: ---- | H48: ---- | I48: ---- | J48: ---- | K48: ---- | L48: | | M48: ---- | N48: ---- | O48: ---- | P48: ---- | Q48: ---- | R48: ---- | S48: ---- | T48: ---- | U48: ---- | V48: ---- | W48: ---- | X48: |
L49: | | X49: |
L50: | | X50: |
L51: | | X51: |
L52: | | X52: |
L53: | | X53: |
L54: | | X54: |
L55: | | X55: |
L56: | | X56: |
L57: | | X57: |
L58: | | X58: |
L59: | | X59: |
L60: | | X60: |
L61: | | X61: |
L62: | | X62: |
L63: | | X63: |
L64: | | X64: |
L65: |
L66: |
L67: |
L68: |
L69: |
L70: |
L71: |
L72: |
L73: |
L74: |
L75: |
L76: |
L77: |
L78: |
L79: |
L80: |
L81: |
L82: |
L83: |
L84: |
L85: |
L86: |
L87: |
L88: |
L89: |
L90: |
L91: |
L92: |
L93: |
L94: |
A95: ---- | B95: ---- | C95: ---- | D95: ---- | E95: ---- | F95: ---- | G95: ---- | H95: ---- | I95: ---- | J95: ---- | K95: ---- | L95: | | M95: ---- | N95: ---- | O95: ---- | P95: ---- | Q95: ---- | R95: ---- | S95: ---- | T95: ---- | U95: ---- | V95: ---- | W95: ---- | X95: |

Sheet 9
A1: Exam: | B1: BattleActs 6C Practice Exam 1 (2018.Fall) | L1: | | M1: Exam: | N1: BattleActs 6C Practice Exam 1 (2018.Fall) - [ANSWER SHEET] | X1: |
A2: Question: | B2: 9 | L2: | | M2: Answer: | N2: =B2 -> 9 | X2: |
A3: Points: | B3: 1.5 | C3: points | L3: | | M3: Points: | N3: =B3 -> 1.5 | O3: points | X3: |
L4: | | X4: |
B5: a. | C5: (0.5 points) | L5: | | M5: Source: | N5: Morn.Pension | X5: |
L6: | | X6: |
C7: How are Canadian employment insurance benefits funded? | L7: | | M7: (0.5 points) | N7: a. | O7: employer and employee share the cost 50/50 | X7: |
L8: | | X8: |
B9: b. | C9: (0.75 points) | L9: | | M9: (0.75 points) | N9: b. | O9: premiums: | X9: |
L10: | | O10: - tax deductible for employer | X10: |
C11: Describe the tax treatment of employment insurance premiums for: | L11: | | O11: - employee receives a tax credit | X11: |
C12: i | D12: employer | L12: | | O12: - 50% of premium is tax deductible for a self-employed individual | X12: |
C13: ii | D13: employee | L13: | | X13: |
C14: iii | D14: self-employed individual | L14: | | M14: (0.25 points) | N14: c. | O14: benefits: | X14: |
L15: | | O15: - taxable | X15: |
B16: c. | C16: (0.25 points) | L16: | | X16: |
L17: | | X17: |
C18: Describe the tax treatment of employment insurance benefits. | L18: | | X18: |
L19: | | X19: |
L20: | | X20: |
L21: | | X21: |
L22: | | X22: |
L23: | | X23: |
L24: | | X24: |
L25: | | X25: |
L26: | | X26: |
L27: | | X27: |
L28: | | X28: |
L29: | | X29: |
L30: | | X30: |
L31: | | X31: |
L32: | | X32: |
L33: | | X33: |
L34: | | X34: |
L35: | | X35: |
L36: | | X36: |
L37: | | X37: |
L38: | | X38: |
L39: | | X39: |
L40: | | X40: |
L41: | | X41: |
L42: | | X42: |
L43: | | X43: |
L44: | | X44: |
L45: | | X45: |
L46: | | X46: |
L47: | | X47: |
A48: ---- | B48: ---- | C48: ---- | D48: ---- | E48: ---- | F48: ---- | G48: ---- | H48: ---- | I48: ---- | J48: ---- | K48: ---- | L48: | | M48: ---- | N48: ---- | O48: ---- | P48: ---- | Q48: ---- | R48: ---- | S48: ---- | T48: ---- | U48: ---- | V48: ---- | W48: ---- | X48: |
L49: | | X49: |
L50: | | X50: |
L51: | | X51: |
L52: | | X52: |
L53: | | X53: |
L54: | | X54: |
L55: | | X55: |
L56: | | X56: |
L57: | | X57: |
L58: | | X58: |
L59: | | X59: |
L60: | | X60: |
L61: | | X61: |
L62: | | X62: |
L63: | | X63: |
L64: | | X64: |
L65: | | X65: |
L66: | | X66: |
L67: | | X67: |
L68: | | X68: |
L69: | | X69: |
L70: | | X70: |
L71: | | X71: |
L72: | | X72: |
L73: | | X73: |
L74: | | X74: |
L75: | | X75: |
L76: | | X76: |
L77: | | X77: |
L78: | | X78: |
L79: | | X79: |
L80: | | X80: |
L81: | | X81: |
L82: | | X82: |
L83: | | X83: |
L84: | | X84: |
L85: | | X85: |
L86: | | X86: |
L87: | | X87: |
L88: | | X88: |
L89: | | X89: |
L90: | | X90: |
L91: | | X91: |
L92: | | X92: |
L93: | | X93: |
L94: | | X94: |
A95: ---- | B95: ---- | C95: ---- | D95: ---- | E95: ---- | F95: ---- | G95: ---- | H95: ---- | I95: ---- | J95: ---- | K95: ---- | L95: | | M95: ---- | N95: ---- | O95: ---- | P95: ---- | Q95: ---- | R95: ---- | S95: ---- | T95: ---- | U95: ---- | V95: ---- | W95: ---- | X95: |

Sheet 10
A1: Exam: | B1: BattleActs 6C Practice Exam 1 (2018.Fall) | L1: | | M1: Exam: | N1: BattleActs 6C Practice Exam 1 (2018.Fall) - [ANSWER SHEET] | X1: |
A2: Question: | B2: 10 | L2: | | M2: Answer: | N2: =B2 -> 10 | X2: |
A3: Points: | B3: 1 | C3: points | L3: | | M3: Points: | N3: =B3 -> 1 | O3: points | X3: |
L4: | | X4: |
B5: a. | C5: (0.5 points) | L5: | | M5: Source: | N5: ICBC.Affordable | X5: |
L6: | | X6: |
C7: The Insurance Corporation of British Columbia has recently become concerned about | L7: | | M7: (0.5 points) | N7: a. | O7: Any 2 of: | X7: |
C8: availability and affordability of auto insurance. Identify 2 issues of concern. (You do | L8: | | O8: - increasing frequency of accidents | X8: |
C9: not have to state the correpsonding target outcome.) | L9: | | O9: - claims-per-accident is increasing | X9: |
L10: | | O10: - severity of minor injury claims is increasing (especially for pain & suffering) | X10: |
B11: b. | C11: (0.5 points) | L11: | | O11: - proportion of costs due to minor injuries ranges from 30% to 60% of total BI claims | X11: |
L12: | | O12: - premiums don't cover claims costs | X12: |
C13: According to "ICBC Affordable and effective auto insurance – A new road forward for | L13: | | X13: |
C14: British Columbia", idenitify 2 guiding principles of an effective auto insurance system. | L14: | | M14: (0.5 points) | O14: Any 2 of: | P14: [Hint: FASES] | X14: |
L15: | | O15: Fair, Affordable, Sustainable, Efficient, Simple | X15: |
L16: | | X16: |
L17: | | X17: |
L18: | | X18: |
L19: | | X19: |
L20: | | X20: |
L21: | | X21: |
L22: | | X22: |
L23: | | X23: |
L24: | | X24: |
L25: | | X25: |
L26: | | X26: |
L27: | | X27: |
L28: | | X28: |
L29: | | X29: |
L30: | | X30: |
L31: | | X31: |
L32: | | X32: |
L33: | | X33: |
L34: | | X34: |
L35: | | X35: |
L36: | | X36: |
L37: | | X37: |
L38: | | X38: |
L39: | | X39: |
L40: | | X40: |
L41: | | X41: |
L42: | | X42: |
L43: | | X43: |
L44: | | X44: |
L45: | | X45: |
L46: | | X46: |
L47: | | X47: |
A48: ---- | B48: ---- | C48: ---- | D48: ---- | E48: ---- | F48: ---- | G48: ---- | H48: ---- | I48: ---- | J48: ---- | K48: ---- | L48: | | M48: ---- | N48: ---- | O48: ---- | P48: ---- | Q48: ---- | R48: ---- | S48: ---- | T48: ---- | U48: ---- | V48: ---- | W48: ---- | X48: |
L49: | | X49: |
L50: | | X50: |
L51: | | X51: |
L52: | | X52: |
L53: | | X53: |
L54: | | X54: |
L55: | | X55: |
L56: | | X56: |
L57: | | X57: |
L58: | | X58: |
L59: | | X59: |
L60: | | X60: |
L61: | | X61: |
L62: | | X62: |
L63: | | X63: |
L64: | | X64: |
L65: |
L66: |
L67: |
L68: |
L69: |
L70: |
L71: |
L72: |
L73: |
L74: |
L75: |
L76: |
L77: |
L78: |
L79: |
L80: |
L81: |
L82: |
L83: |
L84: |
L85: |
L86: |
L87: |
L88: |
L89: |
L90: |
L91: |
L92: |
L93: |
L94: |
A95: ---- | B95: ---- | C95: ---- | D95: ---- | E95: ---- | F95: ---- | G95: ---- | H95: ---- | I95: ---- | J95: ---- | K95: ---- | L95: | | M95: ---- | N95: ---- | O95: ---- | P95: ---- | Q95: ---- | R95: ---- | S95: ---- | T95: ---- | U95: ---- | V95: ---- | W95: ---- | X95: |

Sheet 11
A1: Exam: | B1: BattleActs 6C Practice Exam 1 (2018.Fall) | L1: | | M1: Exam: | N1: BattleActs 6C Practice Exam 1 (2018.Fall) - [ANSWER SHEET] | X1: |
A2: Question: | B2: 11 | L2: | | M2: Answer: | N2: =B2 -> 11 | X2: |
A3: Points: | B3: 3.75 | C3: points | L3: | | M3: Points: | N3: =B3 -> 3.75 | O3: points | X3: |
L4: | | X4: |
B5: a. | C5: (0.75 points) | L5: | | M5: Source: | N5: IBC.Flood | X5: |
L6: | | X6: |
C7: Identify 3 reasons that coverage for overland flooding has generally not | L7: | | M7: (0.75 points) | N7: a. | O7: Hint: adverse-under-maps | X7: |
C8: been offered to residential customers in Canada. | L8: | | O8: adverse: | P8: - adverse selection (if offered, only people who definitely need it would | X8: |
L9: | | P9: buy it, and it would be too expensive) | X9: |
B10: b. | C10: (0.5 points) | L10: | | O10: under: | P10: - government under-investment in risk planning and mitigation | X10: |
L11: | | O11: maps: | P11: - lack of effective flood hazard maps | X11: |
C12: Identify 2 areas of government under-investment in risk planning and mitigation. | L12: | | X12: |
L13: | | M13: (0.5 points) | N13: b. | O13: Any 2 of: [Hint: BAIL me out!] | X13: |
B14: c. | C14: (1 point) | L14: | | O14: Building codes that are obsolete | X14: |
L15: | | O15: Asset management that is poor | X15: |
C16: Identify 4 preconditions for good flood risk management. | L16: | | O16: Infrastructure is lacking (levies, sewers,...) | X16: |
L17: | | O17: Land use planning is inadequate | X17: |
B18: d. | C18: (1.5 points) | L18: | | X18: |
L19: | | M19: (1 point) | N19: c. | O19: I was a hard-ass here! I asked you for all 4! (Sometimes the CAS does that.) | X19: |
C20: Suppose you're given the following information regarding flood risks and potential | L20: | | O20: maps: | Q20: - need good flood maps for planning and risk management | X20: |
C21: risk mitigation strategies: | L21: | | O21: infrastructure: | Q21: - need good infrastructure (levies, sewers,…) | X21: |
L22: | | O22: awareness: | Q22: - need policyholders to be aware of risks and risk management | X22: |
C23: Let | L23: | | O23: incentives: | Q23: - need incentives to encourage individual risk mitigation (government | X23: |
C24: t = time horizon in years | G24: C1 = cost of infrastructure (millions) | L24: | | Q24: could share burden of disaster relief with policyholders) | X24: |
C25: f = frequency of flood | G25: C2 = cost to society (millions) | L25: | | X25: |
C26: s = severity of flood | G26: (Assume premium charged = expected losses) | L26: | | M26: (1.5 points) | N26: d. | O26: Part (i) is not too hard: (each unknown is worth 0.25 points) | X26: |
L27: | | O27: A | R27: C | X27: |
C28: # properties | G28: 60000 | L28: | | O28: = 1/250 x 1 year | R28: = (60,000 x 20,000 x 0.4%) / 1,000,000 + 125 | X28: |
C29: property value | G29: 200000 | L29: | | O29: = 0.4% | R29: = 129.8 | X29: |
C30: flood damage as a % of property value | G30: 0.1 | L30: | | O30: B | R30: D | X30: |
L31: | | O31: = 1/250 x 10 years | R31: = (60,000 x 20,000 x 4%) / 1,000,000 + 125 | X31: |
C32: risk management option | G32: cost | H32: flood return period | L32: | | O32: = 4% | R32: = 173 | X32: |
C33: 1) no infrastructure investment | G33: 0 | H33: 50 | L33: | | X33: |
C34: 2) build a floodway | G34: 125000000 | H34: 250 | L34: | | O34: Part (ii) requires you to notice that C2 is linear with respect to t. You then have to find | X34: |
L35: | | O35: the linear equations for C2 for each option. (Grade 10 algebra) | X35: |
C36: In the following table: | F36: C2 = [(#homes) x (s) x (f)]/1,000,000 + C1 | L36: | | X36: |
L37: | | O37: for option 1: C2 = 24t | X37: |
C38: option | D38: t | E38: # homes | F38: s | G38: f | H38: C1 | I38: C2 | L38: | | O38: for option 2: C2 = 4.8t + 125 | X38: |
C39: 1 | D39: 1 | E39: 60000 | F39: 20000 | G39: =1/H33*D39 -> 0.02 | H39: 0 | I39: =E39*F39*G39/1000000+G33/1000000 -> 24 | L39: | | X39: |
C40: 1 | D40: 10 | E40: 60000 | F40: 20000 | G40: =1/50*D40 -> 0.2 | H40: 0 | I40: =E40*F40*G40/1000000+G33/1000000 -> 240 | L40: | | O40: Set these equations for C2 equal and solve for t to obtain t = 6.51 years | X40: |
C41: 2 | D41: 1 | E41: 60000 | F41: 20000 | G41: A | H41: 125 | I41: C | L41: | | X41: |
C42: 2 | D42: 10 | E42: 60000 | F42: 20000 | G42: B | H42: 125 | I42: D | L42: | | O42: This problem illustrates the contrast between short-term and long-term management. | X42: |
L43: | | O43: If the time horizon is just a few years, then option 1 (the do-nothing, stick your head up | X43: |
C44: Calculate: | L44: | | O44: butt option) is cheaper, but by year 7, option 2 is already cheaper. And the lifespan of | X44: |
C45: i | D45: A,B,C,D | L45: | | O45: a floodway is probably a few decades, so the initial investment pays off very well. | X45: |
C46: ii | D46: the value of t where option 1 starts being more expensive to society than option 2 | L46: | | O46: Granted, I just made these numbers up, but my overall point is valid! | X46: |
L47: | | X47: |
A48: ---- | B48: ---- | C48: ---- | D48: ---- | E48: ---- | F48: ---- | G48: ---- | H48: ---- | I48: ---- | J48: ---- | K48: ---- | L48: | | M48: ---- | N48: ---- | O48: ---- | P48: ---- | Q48: ---- | R48: ---- | S48: ---- | T48: ---- | U48: ---- | V48: ---- | W48: ---- | X48: |
L49: | | X49: |
C50: 2 | D50: 1 | E50: 60000 | F50: 20000 | G50: A | H50: 125 | I50: C | L50: | | O50: Part (ii) requires you to notice that C2 is linear with respect to t. You then have to find | X50: |
C51: 2 | D51: 10 | E51: 60000 | F51: 20000 | G51: B | H51: 125 | I51: D | L51: | | O51: the linear equations for C2 for each option. (Grade 10 algebra) | X51: |
L52: | | X52: |
L53: | | O53: for option 1: C2 = 48t | R53: <-- wrong answer b/c had wrong f-values for option | X53: |
L54: | | O54: for option 2: C2 = 4.8t + 125 | X54: |
L55: | | X55: |
L56: | | O56: Set these equations for C2 equal and solve for t to obtain t = 2.89 years | X56: |
L57: | | X57: |
L58: | | X58: |
L59: | | X59: |
L60: | | X60: |
L61: | | X61: |
L62: | | X62: |
L63: | | X63: |
L64: | | X64: |
L65: |
L66: |
L67: |
L68: |
L69: |
L70: |
L71: |
L72: |
L73: |
L74: |
L75: |
L76: |
L77: |
L78: |
L79: |
L80: |
L81: |
L82: |
L83: |
L84: |
L85: |
L86: |
L87: |
L88: |
L89: |
L90: |
L91: |
L92: |
L93: |
L94: |
A95: ---- | B95: ---- | C95: ---- | D95: ---- | E95: ---- | F95: ---- | G95: ---- | H95: ---- | I95: ---- | J95: ---- | K95: ---- | L95: | | M95: ---- | N95: ---- | O95: ---- | P95: ---- | Q95: ---- | R95: ---- | S95: ---- | T95: ---- | U95: ---- | V95: ---- | W95: ---- | X95: |

Sheet 12
A1: Exam: | B1: BattleActs 6C Practice Exam 1 (2018.Fall) | L1: | | M1: Exam: | N1: BattleActs 6C Practice Exam 1 (2018.Fall) - [ANSWER SHEET] | X1: |
A2: Question: | B2: 12 | L2: | | M2: Answer: | N2: =B2 -> 12 | X2: |
A3: Points: | B3: 2.25 | C3: points | L3: | | M3: Points: | N3: =B3 -> 2.25 | O3: points | X3: |
L4: | | X4: |
C5: A Canadian P&C company holds the following 3 bonds. Assume the company is an | L5: | | M5: Source: | N5: CIA.Accting | X5: |
C6: income tax exempt corporation and that it has no other investments. (Amounts in 000s.) | L6: | | X6: |
L7: | | M7: (0.75 points) | N7: a. | O7: STM bond of class HTM: | S7: * This is problem is just like 2016.Spring #26a | X7: |
C8: AV = Amortized Value | G8: * Values given are year-end values | L8: | | O8: - use AV 2017 value of 2,900 | X8: |
C9: MV = Market Value / Fair Value | L9: | | O9: TTC bond of class AFS: | X9: |
L10: | | O10: - use MV 2017 value of 4000 | X10: |
C11: Transit | E11: AV | F11: MV | G11: Coupon | H11: AV | I11: MV | L11: | | O11: GRT bond of class HFT: | X11: | | AA11: AV | AB11: MV | AC11: Coupon | AD11: AV | AE11: MV
C12: Bond | D12: Class | E12: 2016 | F12: 2016 | G12: in 2017 | H12: 2017 | I12: 2017 | L12: | | O12: - use MV 2017 value of 1150 | X12: | | Y12: Bond | Z12: Class | AA12: 2016 | AB12: 2017 | AC12: in 2017 | AD12: 2016 | AE12: 2017 | AG12: NI | AH12: OCI
C13: STM | D13: HTM | E13: 3000 | F13: 3500 | G13: 40 | H13: 2900 | I13: 3400 | L13: | | X13: | | Y13: STM | Z13: HTM | AA13: 3000 | AB13: 3500 | AC13: 40 | AD13: 2900 | AE13: 3400 | AG13: =AD13-AA13+AC13 -> -60 | AH13: 0
C14: TTC | D14: AFS | E14: 4000 | F14: 3900 | G14: 75 | H14: 4200 | I14: 4000 | L14: | | M14: (1 point) | N14: b. | O14: NI(HTM) | R14: NI(AFS) | U14: NI(HFT) | X14: | | Y14: TTC | Z14: AFS | AA14: 4000 | AB14: 3900 | AC14: 75 | AD14: 4200 | AE14: 4000 | AG14: =AD14-AA14+AC14 -> 275 | AH14: =(AE14-AD14)-(AB14-AA14) -> -100
C15: GRT | D15: HFT | E15: 1050 | F15: 1100 | G15: 25 | H15: 1075 | I15: 1150 | L15: | | O15: = chg(AV) + coupons | R15: = chg(AV) + coupons | U15: = chg(MV) + coupons | X15: | | Y15: GRT | Z15: HFT | AA15: 1050 | AB15: 1100 | AC15: 25 | AD15: 1075 | AE15: 1150 | AG15: =AE15-AB15+AC15 -> 75 | AH15: 0
L16: | | O16: = (2900 - 3000) + 40 | R16: = (4200 - 4000) + 75 | U16: = (1150 - 1100) + 25 | X16: | | AG16: =SUM(AG13:AG15) -> 290 | AH16: =SUM(AH13:AH15) -> -100
B17: a. | C17: (0.75 points) | L17: | | O17: = -60 | R17: = 275 | U17: = 75 | X17: |
L18: | | X18: |
C19: Determine the value of each bond to be shown in the 2017 year-end financial statements. | L19: | | O19: Total NI = 290 | X19: |
L20: | | X20: |
B21: b. | C21: (1 point) | L21: | | O21: OCI(HTM) = 0, always | R21: OCI(AFS) | U21: OCI(HFT) = 0, always | X21: |
L22: | | R22: = chg(MV - AV) year-over-year | X22: |
C23: Calculate the impact of holding these investments on net income and other comprehensive | L23: | | R23: = (4000 - 4200) - (3900 - 4000) | X23: |
C24: income in 2017. | L24: | | R24: = -100 | X24: |
L25: | | X25: |
B26: c. | C26: (0.5 points) | L26: | | O26: Total OCI = -100 | X26: |
L27: | | X27: |
C28: Assume the market rate increases on Jan 1, 2018. What effect does an AFS bond have on net | L28: | | O28: * This is problem is just like 2016.Spring #26b. (Be sure to also review 2016.Fall #13.) | X28: |
C29: income, other comprehensive income, and equity? | L29: | | X29: |
L30: | | M30: (0.5 point) | N30: c. | O30: market rate up | Q30: --> | R30: asset value down | X30: |
L31: | | Q31: --> | R31: net income not affected | X31: |
L32: | | R32: other comprehensive income down | X32: |
L33: | | R33: equity down | X33: |
L34: | | X34: |
L35: | | O35: market rate up | Q35: --> | R35: liability value down | X35: |
L36: | | Q36: --> | R36: net income up | X36: |
L37: | | R37: other comprehensive income not affected | X37: |
L38: | | R38: equity up | X38: |
L39: | | X39: |
L40: | | O40: So the effect on assets is: | R40: (NI, OCI, Equity) = (no effect : down : down) | X40: |
L41: | | O41: So the effect on liabilities is: | R41: (NI, OCI, Equity) = (up : no effect : up) | X41: |
L42: | | X42: |
L43: | | O43: The "sum" of assets & liabilities is on (NI, OCI, Equity) is: (up : down : indeterminate) | X43: |
L44: | | X44: |
L45: | | X45: |
L46: | | X46: |
L47: | | X47: |
A48: ---- | B48: ---- | C48: ---- | D48: ---- | E48: ---- | F48: ---- | G48: ---- | H48: ---- | I48: ---- | J48: ---- | K48: ---- | L48: | | M48: ---- | N48: ---- | O48: ---- | P48: ---- | Q48: ---- | R48: ---- | S48: ---- | T48: ---- | U48: ---- | V48: ---- | W48: ---- | X48: |
L49: | | X49: |
L50: | | X50: |
L51: | | X51: |
L52: | | X52: |
L53: | | X53: |
L54: | | X54: |
L55: | | X55: |
L56: | | X56: |
L57: | | X57: |
L58: | | X58: |
L59: | | X59: |
L60: | | X60: |
L61: | | X61: |
L62: | | X62: |
L63: | | X63: |
L64: | | X64: |
L65: |
L66: |
L67: |
L68: |
L69: |
L70: |
L71: |
L72: |
L73: |
L74: |
L75: |
L76: |
L77: |
L78: |
L79: |
L80: |
L81: |
L82: |
L83: |
L84: |
L85: |
L86: |
L87: |
L88: |
L89: |
L90: |
L91: |
L92: |
L93: |
L94: |
A95: ---- | B95: ---- | C95: ---- | D95: ---- | E95: ---- | F95: ---- | G95: ---- | H95: ---- | I95: ---- | J95: ---- | K95: ---- | L95: | | M95: ---- | N95: ---- | O95: ---- | P95: ---- | Q95: ---- | R95: ---- | S95: ---- | T95: ---- | U95: ---- | V95: ---- | W95: ---- | X95: |

Sheet 13
A1: Exam: | B1: BattleActs 6C Practice Exam 1 (2018.Fall) | L1: | | M1: Exam: | N1: BattleActs 6C Practice Exam 1 (2018.Fall) - [ANSWER SHEET] | X1: |
A2: Question: | B2: 13 | L2: | | M2: Answer: | N2: =B2 -> 13 | X2: |
A3: Points: | B3: 7 | C3: points | L3: | | M3: Points: | N3: =B3 -> 7 | O3: points | X3: |
L4: | | X4: |
B5: a. | C5: (2 points) | L5: | | M5: Source: | N5: OSFI.MCT | X5: |
L6: | | X6: |
C7: Given the following information, calculate the MCT capital available. | L7: | | M7: (2 points) | N7: a. | O7: capital available gross of deductions: | S7: =SUM(H9:H16) -> 67600 | T7: (sum entries in first table) | X7: |
L8: | | O8: deduction for unregistered reinsurance: | S8: 10000 | T8: (see full solution in external PDF) | X8: |
D9: qualifying category A common shares | H9: 24000 | L9: | | O9: deduction for excess B & C capital: | S9: 2923 | T9: (see full solution in external PDF) | X9: |
D10: contributed surplus | H10: 3000 | L10: | | O10: MCT net capital available | S10: =S7-S8-S9 -> 54677 | X10: |
D11: Retained Earnings | H11: 5500 | L11: | | X11: |
D12: reserves | H12: 5000 | L12: | | M12: (4.5 points) | N12: b. | O12: capital required for insurance risk: | S12: 36457 | T12: (sum the components) | X12: |
D13: AOCI | H13: 6500 | L13: | | O13: component: unpaid claims | S13: 15670 | T13: (see full solution in external PDF) | X13: |
D14: qualifying category B instruments | H14: 16500 | L14: | | O14: component: premium liabilities | S14: 13887 | T14: (see full solution in external PDF) | X14: |
D15: qualifying category C instruments | H15: 6500 | L15: | | O15: component: unregistered reinsurance | S15: 3900 | T15: (given) | X15: |
D16: non-controlling interests | H16: 600 | L16: | | O16: component: catastrophes | S16: 3000 | T16: (given) | X16: |
L17: | | X17: |
C18: You'll also need some information on reinsurance ceded to unregistered reinsurers: | L18: | | O18: capital required for market risk: | S18: 9000 | T18: (sum the components) [Hint: Mr. IFER] | X18: |
L19: | | O19: component: interest rate risk | S19: 3500 | T19: (given) | X19: |
D20: UEP ceded: | E20: ($) UnEarned Premiums ceded to assuming reinsurer | L20: | | O20: component: foreign exchange | S20: 500 | T20: (given) | X20: |
D21: O/S Recov: | E21: ($) OutStanding losses Recoverable from assuming reinsurer | L21: | | O21: component: equity | S21: 4000 | T21: (given) | X21: |
D22: Reins Recv: | E22: ($) Reinsurance Receivable | L22: | | O22: component: real estate | S22: 1000 | T22: (given) | X22: |
D23: Reins Pay: | E23: ($) Reinsurance Payable | L23: | | X23: |
D24: NOD: | E24: ($) Non-Owned Deposits (RSA + Other) & includes FUNDS to secure pmt | L24: | | O24: capital required for credit risk: | S24: 4530 | T24: (given) | X24: |
E25: from assuming insurer (the FUNDS inclusion is new for 2018) | L25: | | X25: |
D26: LOC: | E26: ($) Letters Of Credit | L26: | | O26: capital required for operational risk: | S26: 11027 | T26: (see full solution in external PDF) | X26: |
L27: | | X27: |
D28: UEP | E28: O/S | F28: Reins | G28: Reins | L28: | | O28: MCT minimum capital required: | S28: 37206 | X28: |
D29: ceded | E29: Recov | F29: Recv | G29: Pay | H29: NOD | I29: LOC | L29: | | O29: diversification credit: | S29: 5205 | X29: |
D30: 18000 | E30: 8000 | F30: 3000 | G30: 6000 | H30: 8000 | I30: 5000 | L30: | | X30: |
L31: | | M31: (0.5 points) | N31: c. | O31: MCT ratio: | Q31: = CapAvail / minCapReq | X31: |
B32: b. | C32: (4.5 points) | L32: | | Q32: = 54,677 / 37,206 | X32: |
L33: | | Q33: = 147% | X33: |
C34: Given the following information, calculate the MCT minimum capital required. | L34: | | X34: |
L35: | | O35: This is below the supervisery target of 150%. (They would now be under increased | X35: |
D36: Line of | E36: net | H36: * net unpaid is discounted but excludes | L36: | | O36: scrutiny by OSFI.) | X36: |
D37: Business | E37: unpaid * | F37: margin | H37: PfADs | L37: | | X37: |
D38: Line 1 | E38: 45000 | F38: 0.16 | L38: | | X38: |
D39: Line 2 | E39: 77000 | F39: 0.11 | L39: | | X39: |
L40: | | X40: |
D41: Line of | E41: prem | G41: DWP | H41: AWP | I41: CWP | L41: | | X41: |
D42: Business | E42: liabs | F42: margin | G42: (12 mths) | H42: (12 mths) | I42: (12 mths) | L42: | | X42: |
D43: Line 1 | E43: 20000 | F43: 0.19 | G43: 80000 | H43: 20000 | I43: 9000 | L43: | | X43: |
D44: Line 2 | E44: 58000 | F44: 0.15 | G44: 121000 | H44: 23000 | I44: 29000 | L44: | | X44: |
L45: | | X45: |
C46: Question continues on next page… | L46: | | X46: |
L47: | | X47: |
A48: ---- | B48: ---- | C48: ---- | D48: ---- | E48: ---- | F48: ---- | G48: ---- | H48: ---- | I48: ---- | J48: ---- | K48: ---- | L48: | | M48: ---- | N48: ---- | O48: ---- | P48: ---- | Q48: ---- | R48: ---- | S48: ---- | T48: ---- | U48: ---- | V48: ---- | W48: ---- | X48: |
L49: | | X49: |
A50: Exam: | B50: BattleActs 6C Practice Exam 1 (2018.Fall) | L50: | | X50: |
A51: Question: | B51: 13 (continued) | L51: | | X51: |
L52: | | X52: |
C53: These 2 amounts relate to components of insurance risk: | L53: | | X53: |
L54: | | X54: |
D55: capital required for unregistered reinsurers: | I55: 3900 | L55: | | X55: |
D56: capital required for catastrophes: | I56: 3000 | L56: | | X56: |
L57: | | X57: |
C58: The capital required for interest rate risk is: | H58: 3500 | L58: | | X58: |
C59: The capital required for foreign exchange risk is: | H59: 500 | L59: | | X59: |
C60: The capital required for equity risk is: | H60: 4000 | L60: | | X60: |
C61: The capital required for real estate risk is: | H61: 1000 | L61: | | X61: |
C62: The capital required for credit risk is: | H62: 4530 | L62: | | X62: |
L63: | | X63: |
C64: Here is some more information that you'll need: | L64: | | X64: |
L65: | | X65: |
D66: AWP(ig): | E66: ($) AWP (last 12 mths) from intra-group pooling | L66: | | X66: |
D67: CWP(ig): | E67: ($) CWP (last 12 mths) from intra-group pooling | L67: | | X67: |
L68: | | X68: |
D69: DWP | E69: AWP | F69: CWP | G69: growth | H69: AWP(ig): | I69: CWP(ig): | L69: | | X69: |
D70: 201000 | E70: 43000 | F70: 38000 | G70: 0.21 | H70: 0 | I70: 0 | L70: | | X70: |
L71: | | X71: |
G72: risk factor | L72: | | X72: |
D73: DWP over last 12 months | G73: 0.025 | L73: | | X73: |
D74: AWP over last 12 months | G74: 0.0175 | L74: | | X74: |
D75: CWP over last 12 months | G75: 0.025 | L75: | | X75: |
D76: AWP(ig) over last 12 months | G76: 0.0075 | L76: | | X76: |
D77: CWP(ig) over last 12 months | G77: 0.0075 | L77: | | X77: |
D78: premium growth above 20% | G78: 0.025 | L78: | | X78: |
D79: capital factor * | G79: 0.085 | L79: | | X79: |
L80: | | X80: |
D81: * capital factor applies to total capital required BEFORE operational risk margin | L81: | | X81: |
D82: and diversification credit. | L82: | | X82: |
L83: | | X83: |
B84: c. | C84: (0.5 point) | L84: | | X84: |
L85: | | X85: |
C86: Calculate the MCT ratio and state whether it is above or below the supervisery target. | L86: | | X86: |
L87: | | X87: |
L88: | | X88: |
L89: | | X89: |
L90: | | X90: |
L91: | | X91: |
L92: | | X92: |
L93: | | X93: |
L94: | | X94: |
L95: | | X95: |
A96: ---- | B96: ---- | C96: ---- | D96: ---- | E96: ---- | F96: ---- | G96: ---- | H96: ---- | I96: ---- | J96: ---- | K96: ---- | L96: | | M96: ---- | N96: ---- | O96: ---- | P96: ---- | Q96: ---- | R96: ---- | S96: ---- | T96: ---- | U96: ---- | V96: ---- | W96: ---- | X96: |

Sheet 14
A1: Exam: | B1: BattleActs 6C Practice Exam 1 (2018.Fall) | L1: | | M1: Exam: | N1: BattleActs 6C Practice Exam 1 (2018.Fall) - [ANSWER SHEET] | X1: |
A2: Question: | B2: 14 | L2: | | M2: Answer: | N2: =B2 -> 14 | X2: |
A3: Points: | B3: 1.25 | C3: points | L3: | | M3: Points: | N3: =B3 -> 1.25 | O3: points | X3: |
L4: | | X4: |
B5: a. | C5: (1.25 points) | L5: | | M5: Source: | N5: CCIR.ARinstr | X5: |
L6: | | X6: |
C7: Calculate the excess (deficiency) ratio for AY 2016 and state whether it's an | L7: | | M7: (1.25 points) | N7: a. | O7: investment income for 2017 | S7: investment income for 2018 | X7: |
C8: excess or a deficiency. | L8: | | O8: = 3.10% x avg(129000, 100600) | S8: = 2.80% x avg(100600, 91500) | X8: |
L9: | | O9: = 3.10% x 114,800 | S9: = 2.80% x 96,050 | X9: |
C10: Incremental Paid Loss for Calendar Year | H10: Discounted UCAE at end of Cal. Yr. | L10: | | O10: = 3,559 | S10: = 2,689 | X10: |
C11: AY | D11: 2016 | E11: 2017 | F11: 2018 | H11: AY | I11: 2016 | J11: 2017 | K11: 2018 | L11: | | X11: |
C12: 2016 | D12: 102000 | E12: 28600 | F12: 7700 | H12: 2016 | I12: 129000 | J12: 100600 | K12: 91500 | L12: | | O12: excess (deficiency) ratio | X12: |
C13: 2017 | E13: 81000 | F13: 21100 | H13: 2017 | J13: 128000 | K13: 81900 | L13: | | O13: = (129,000 - 36,300 - 91,500 + 3,559 + 2,689) / 129,000 | X13: |
C14: 2018 | F14: 103000 | H14: 2018 | K14: 149000 | L14: | | O14: = 5.77% | X14: |
L15: | | X15: |
C16: Investment Yield for 2017: | F16: 0.031 | L16: | | O16: Since it is positive, it is an excess. (They sometimes take off points if you don't say this.) | X16: |
C17: Investment Yield for 2018: | F17: 0.028 | L17: | | X17: |
L18: | | X18: |
L19: | | X19: |
L20: | | X20: |
L21: | | X21: |
L22: | | X22: |
L23: | | X23: |
L24: | | X24: |
L25: | | X25: |
L26: | | X26: |
L27: | | X27: |
L28: | | X28: |
L29: | | X29: |
L30: | | X30: |
L31: | | X31: |
L32: | | X32: |
L33: | | X33: |
L34: | | X34: |
L35: | | X35: |
L36: | | X36: |
L37: | | X37: |
L38: | | X38: |
L39: | | X39: |
L40: | | X40: |
L41: | | X41: |
L42: | | X42: |
L43: | | X43: |
L44: | | X44: |
L45: | | X45: |
L46: | | X46: |
L47: | | X47: |
A48: ---- | B48: ---- | C48: ---- | D48: ---- | E48: ---- | F48: ---- | G48: ---- | H48: ---- | I48: ---- | J48: ---- | K48: ---- | L48: | | M48: ---- | N48: ---- | O48: ---- | P48: ---- | Q48: ---- | R48: ---- | S48: ---- | T48: ---- | U48: ---- | V48: ---- | W48: ---- | X48: |
L49: | | X49: |
L50: | | X50: |
L51: | | X51: |
L52: | | X52: |
L53: | | X53: |
L54: | | X54: |
L55: | | X55: |
L56: | | X56: |
L57: | | X57: |
L58: | | X58: |
L59: | | X59: |
L60: | | X60: |
L61: | | X61: |
L62: | | X62: |
L63: | | X63: |
L64: | | X64: |
L65: |
L66: |
L67: |
L68: |
L69: |
L70: |
L71: |
L72: |
L73: |
L74: |
L75: |
L76: |
L77: |
L78: |
L79: |
L80: |
L81: |
L82: |
L83: |
L84: |
L85: |
L86: |
L87: |
L88: |
L89: |
L90: |
L91: |
L92: |
L93: |
L94: |
A95: ---- | B95: ---- | C95: ---- | D95: ---- | E95: ---- | F95: ---- | G95: ---- | H95: ---- | I95: ---- | J95: ---- | K95: ---- | L95: | | M95: ---- | N95: ---- | O95: ---- | P95: ---- | Q95: ---- | R95: ---- | S95: ---- | T95: ---- | U95: ---- | V95: ---- | W95: ---- | X95: |

Sheet 15
A1: Exam: | B1: BattleActs 6C Practice Exam 1 (2018.Fall) | L1: | | M1: Exam: | N1: BattleActs 6C Practice Exam 1 (2018.Fall) - [ANSWER SHEET] | X1: |
A2: Question: | B2: 15 | L2: | | M2: Answer: | N2: =B2 -> 15 | X2: |
A3: Points: | B3: 2.75 | C3: points | L3: | | M3: Points: | N3: =B3 -> 2.75 | O3: points | X3: |
L4: | | X4: |
B5: Suppose you're given the following information | L5: | | M5: Source: | N5: MSA.Ratios | X5: |
L6: | | V6: for part (b) | X6: |
F7: current | G7: prior | L7: | | M7: (0.75 points) | N7: a. | O7: ROE= ( NI.preTax - TotTax ) / Eq | U7: = 7.45% | V7: > | W7: 0.054 | X7: | | Y7: =(F14-F15)/F17 -> 0.07446808511
C8: balance sheet item | F8: year | G8: year | L8: | | O8: ROR= ( U/W.Inc - CapGains + InvInc + IncFrmSubs ) / GWP | U8: = 6.30% | V8: > | W8: 0.062 | X8: | | Y8: =(F10-F12+F13+F11)/F9 -> 0.06296296296
C9: GWP | F9: 135000 | G9: 133770 | L9: | | O9: ROA= ( NI.preTax - TotTax ) / (2-yr avg of assets) | U9: = 2.48% | V9: < | W9: 0.026 | X9: | | Y9: =(F14-F15)/AVERAGE(F16:G16) -> 0.02482269504
C10: U/W Income | F10: 4050 | G10: 4700 | L10: | | X10: |
C11: Income from Subs | F11: 150 | G11: 175 | L11: | | M11: (1 point) | N11: b. | O11: ROE and ROR are within the acceptable range, but ROA is not. Monitor the level of the | X11: |
C12: Realized Gains | F12: 600 | G12: 600 | L12: | | O12: assets going forward. The MCT ratio is approaching the supervisory target level of 150%, | X12: |
C13: Total Investment Income | F13: 4900 | G13: 6000 | L13: | | O13: so this should be monitored too. | X13: |
C14: NI (Net Income) preTax | F14: =F10+F11+F13 -> 9100 | G14: =G10+G11+G13 -> 10875 | L14: | | O14: The financial health of the company is moderate. | X14: |
C15: Total Tax | F15: 5600 | G15: 5800 | L15: | | X15: |
C16: Total Assets | F16: 140000 | G16: 142000 | L16: | | M16: (1 point) | N16: c. | O16: corrected equity | X16: |
C17: Equity | F17: 47000 | G17: 50000 | L17: | | O17: = (prior year equity) + (NI preTax) - (Total Tax) | X17: |
L18: | | O18: = 50,000 + 9,100 - 5,600 | X18: | | Y18: =G17+F14-F15 -> 53500
B19: a. | C19: (0.75 points) | L19: | | O19: = 53,500 | X19: |
L20: | | X20: |
C21: Calculate ROE, ROR, ROA (Return on Equity, Return on Revenue, Return on Assets). | L21: | | O21: revised ROE | X21: |
L22: | | O22: = (9,100 - 5,600) / 53,500 | X22: |
B23: b. | C23: (1 point) | L23: | | O23: = 6.54% | X23: | | Y23: =(F14-F15)/Y18 -> 0.06542056075
L24: | | O24: > 5.4% | X24: |
C25: Using part (a), and given that the MCT ratio for this company is 155%, comment on the | L25: | | X25: |
C26: financial health of the company. | L26: | | O26: The revised ROE is lower but still within the acceptable range. It would not materially | X26: |
L27: | | O27: change my evaluation of the company. | X27: |
B28: c. | C28: (1 point) | L28: | | X28: |
L29: | | X29: |
C30: The auditor discovered an error in the above table regarding the equity for the current year. | L30: | | X30: |
C31: i | D31: Assuming the other values in the table are correct, recalculate the current year's | L31: | | X31: |
D32: equity. (Assume no dividends were paid to shareholders, and no equity | L32: | | X32: |
D33: investments or contributions were made to the company.) | L33: | | X33: |
C34: ii | D34: Recalculate ROE using the revised equity. Does this change your evaluation of | L34: | | X34: |
D35: the company's financial health? | L35: | | X35: |
L36: | | X36: |
L37: | | X37: |
L38: | | X38: |
L39: | | X39: |
L40: | | X40: |
L41: | | X41: |
L42: | | X42: |
L43: | | X43: |
L44: | | X44: |
L45: | | X45: |
L46: | | X46: |
L47: | | X47: |
A48: ---- | B48: ---- | C48: ---- | D48: ---- | E48: ---- | F48: ---- | G48: ---- | H48: ---- | I48: ---- | J48: ---- | K48: ---- | L48: | | M48: ---- | N48: ---- | O48: ---- | P48: ---- | Q48: ---- | R48: ---- | S48: ---- | T48: ---- | U48: ---- | V48: ---- | W48: ---- | X48: |
L49: | | X49: |
L50: | | X50: |
L51: | | X51: |
L52: | | X52: |
L53: | | X53: |
L54: | | X54: |
L55: | | X55: |
L56: | | X56: |
L57: | | X57: |
L58: | | X58: |
L59: | | X59: |
L60: | | X60: |
L61: | | X61: |
L62: | | X62: |
L63: | | X63: |
L64: | | X64: |
L65: |
L66: |
L67: |
L68: |
L69: |
L70: |
L71: |
L72: |
L73: |
L74: |
L75: |
L76: |
L77: |
L78: |
L79: |
L80: |
L81: |
L82: |
L83: |
L84: |
L85: |
L86: |
L87: |
L88: |
L89: |
L90: |
L91: |
L92: |
L93: |
L94: |
A95: ---- | B95: ---- | C95: ---- | D95: ---- | E95: ---- | F95: ---- | G95: ---- | H95: ---- | I95: ---- | J95: ---- | K95: ---- | L95: | | M95: ---- | N95: ---- | O95: ---- | P95: ---- | Q95: ---- | R95: ---- | S95: ---- | T95: ---- | U95: ---- | V95: ---- | W95: ---- | X95: |

Sheet 16
A1: Exam: | B1: BattleActs 6C Practice Exam 1 (2018.Fall) | L1: | | M1: Exam: | N1: BattleActs 6C Practice Exam 1 (2018.Fall) - [ANSWER SHEET] | X1: |
A2: Question: | B2: 16 | L2: | | M2: Answer: | N2: =B2 -> 16 | X2: |
A3: Points: | B3: 2.25 | C3: points | L3: | | M3: Points: | N3: =B3 -> 2.25 | O3: points | X3: |
L4: | | X4: |
B5: a. | C5: (2.25 points) | L5: | | M5: Source: | N5: CCIR.ARinstr | X5: |
L6: | | X6: |
C7: Given the following information, calculate the TOTAL NET COMMISSIONS. Note that I've | L7: | | M7: (2.25 points) | N7: a. | O7: The key is knowing the layout of the exhibit and the formulas to complete the columns. It is | X7: |
C8: used abbreviations in the table so the table would fit in the width of the page. | L8: | | O8: exactly like 2016.Spring #18. I found the answer in the examiner's report very confusing. | X8: |
L9: | | O9: It's much easier if you put everything into a table like in Exhibit 80.10. You can see the layout | X9: |
C10: DFcomm: | D10: Deferred Commissions | H10: @ start: | I10: at start of year | L10: | | O10: of this net commissions exhibit in the sample quarterly statement. | X10: |
C11: UEcomm: | D11: Unearned Commissions | H11: @ end: | I11: at end of year | L11: | | X11: |
L12: | | O12: There is a summary box to this exhibit that isn't given in the statement of the problem. You | X12: |
C13: (02) | D13: (03) | E13: (04) | F13: (05) | G13: (06) | H13: (07) | I13: (08) | J13: (09) | K13: (10) | L13: | | O13: have to memorize this. The only number you don't have is the commission expense. | X13: |
C14: DFcomm | D14: UEcomm | E14: commissions in respect of WP | I14: DFcomm | J14: UEcomm | K14: Net | L14: | | X14: |
B15: LOB | C15: @ start | D15: @ start | E15: Direct | F15: Assm'd | G15: Ceded | H15: Net | I15: @ end | J15: @ end | K15: Comm | L15: | | O15: summary of commissions | X15: |
B16: 1 | C16: 1400 | E16: 1000 | F16: 100 | G16: 400 | I16: 1600 | L16: | | O16: gross | X16: |
B17: 2 | C17: 1600 | E17: 1500 | G17: 400 | H17: 1200 | I17: 1900 | L17: | | O17: commission expense | S17: =O46+Q46+R46-U46 -> 2200 | T17: = (02) + (04) + (05) - (08) [use totals row] | X17: |
B18: Tot | C18: =SUM(C16:C17) -> 3000 | E18: =SUM(E16:E17) -> 2500 | G18: =SUM(G16:G17) -> 800 | I18: =SUM(I16:I17) -> 3500 | L18: | | O18: contingent commission | S18: =K20 -> 600 | T18: <-- given | X18: |
L19: | | O19: other non-deferrable commission | S19: =K22 -> 300 | T19: <-- given | X19: |
G20: gross contingent commissions | K20: 600 | L20: | | O20: total gross | S20: =SUM(S17:S19) -> 3100 | T20: = sum of gross commissions | X20: |
G21: ceded contingent commissions | K21: 150 | L21: | | O21: ceded | X21: |
G22: gross other non-deferrable commissions | K22: 300 | L22: | | O22: commission income | S22: =K24 -> 1200 | T22: <-- given | X22: |
G23: ceded other non-deferrable commissions | K23: 50 | L23: | | O23: contingent commission | S23: =K21 -> 150 | T23: <-- given | X23: |
G24: ceded commission income (LOB1 + LOB2) | K24: 1200 | L24: | | O24: other non-deferrable commission | S24: =K23 -> 50 | T24: <-- given | X24: |
L25: | | O25: total ceded | S25: =SUM(S22:S24) -> 1400 | T25: = sum of ceded commissions | X25: |
L26: | | M26: final answer ----> | O26: TOTAL NET COMMISSIONS | S26: =S20-S25 -> 1700 | T26: = (total gross) - (total ceded) | X26: |
L27: | | X27: |
L28: | | O28: So, we have to get the total for column (05). We need the corresponding value for LOB 2. | X28: |
L29: | | O29: This is easy. We just use the standard formula: | X29: |
L30: | | X30: |
L31: | | P31: Direct + Assumed - Ceded = Net | X31: |
L32: | | X32: |
L33: | | O33: Rearrange this as follows: | X33: |
L34: | | X34: |
L35: | | P35: Assumed = Net - Direct + Ceded | X35: |
L36: | | Q36: = 1,200 - 1,500 + 400 | X36: |
L37: | | Q37: = 100 | X37: |
L38: | | X38: |
L39: | | O39: Substitute this into the table below and calculate the sum of column (05). C'est très facile! | X39: |
L40: | | X40: |
L41: | | O41: (02) | P41: (03) | Q41: (04) | R41: (05) | S41: (06) | T41: (07) | U41: (08) | V41: (09) | W41: (10) | X41: |
L42: | | O42: DFcomm | P42: UEcomm | Q42: commissions in respect of WP | U42: DFcomm | V42: UEcomm | W42: Net | X42: |
L43: | | N43: LOB | O43: @ start | P43: @ start | Q43: Direct | R43: Assm'd | S43: Ceded | T43: Net | U43: @ end | V43: @ start | W43: Comm | X43: |
L44: | | N44: 1 | O44: =C16 -> 1400 | Q44: =E16 -> 1000 | R44: =F16 -> 100 | S44: =G16 -> 400 | U44: =I16 -> 1600 | X44: |
L45: | | N45: 2 | O45: =C17 -> 1600 | Q45: 1500 | R45: =T45+S45-Q45 -> 100 | S45: 400 | T45: =H17 -> 1200 | U45: 1900 | X45: |
L46: | | N46: Tot | O46: =SUM(O44:O45) -> 3000 | Q46: =SUM(Q44:Q45) -> 2500 | R46: =SUM(R44:R45) -> 200 | S46: =SUM(S44:S45) -> 800 | U46: =SUM(U44:U45) -> 3500 | X46: |
L47: | | X47: |
A48: ---- | B48: ---- | C48: ---- | D48: ---- | E48: ---- | F48: ---- | G48: ---- | H48: ---- | I48: ---- | J48: ---- | K48: ---- | L48: | | O48: Now we calculate the commission expense using the green highlighted values: | X48: |
L49: | | X49: |
L50: | | Q50: commission expense | R50: = (02) + (04) + (05) - (08) | X50: |
L51: | | R51: = 3,000 + 2,500 + 200 - 3,500 | X51: |
L52: | | R52: = 2,200 | X52: |
L53: | | M53: ---- | N53: ---- | O53: ---- | P53: ---- | Q53: ---- | R53: ---- | S53: ---- | T53: ---- | U53: ---- | V53: ---- | W53: ---- | X53: |
L54: | | X54: |
L55: | | X55: |
L56: | | X56: |
L57: | | X57: |
L58: | | X58: |
L59: | | X59: |
L60: | | X60: |
L61: | | X61: |
L62: | | X62: |
L63: | | X63: |
L64: | | X64: |
L65: |
L66: |
L67: |
L68: |
L69: |
L70: |
L71: |
L72: |
L73: |
L74: |
L75: |
L76: |
L77: |
L78: |
L79: |
L80: |
L81: |
L82: |
L83: |
L84: |
L85: |
L86: |
L87: |
L88: |
L89: |
L90: |
L91: |
L92: |
L93: |
L94: |
A95: ---- | B95: ---- | C95: ---- | D95: ---- | E95: ---- | F95: ---- | G95: ---- | H95: ---- | I95: ---- | J95: ---- | K95: ---- | L95: | | M95: ---- | N95: ---- | O95: ---- | P95: ---- | Q95: ---- | R95: ---- | S95: ---- | T95: ---- | U95: ---- | V95: ---- | W95: ---- | X95: |

Sheet 17
A1: Exam: | B1: BattleActs 6C Practice Exam 1 (2018.Fall) | L1: | | M1: Exam: | N1: BattleActs 6C Practice Exam 1 (2018.Fall) - [ANSWER SHEET] | X1: |
A2: Question: | B2: 17 | L2: | | M2: Answer: | N2: =B2 -> 17 | X2: |
A3: Points: | B3: 2.25 | C3: points | L3: | | M3: Points: | N3: =B3 -> 2.25 | O3: points | X3: |
L4: | | X4: |
B5: a. | C5: (1 point) | L5: | | M5: Source: | N5: OSFI.Eqk | X5: |
L6: | | X6: |
C7: Calculate the earthquake reserve component using the model method with phase-in. (EPR is | L7: | | M7: (1 point) | N7: a. | O7: ERX_1 (Earthquake Risk Exposure) without phase-in | X7: |
C8: the earthquake premium reserve.) | L8: | | O8: = ( (East Canada PML500)^1.5 + (West Canada PML500)^1.5 ) ^ (1/1.5) | X8: |
L9: | | O9: = (40,000^1.5 + 160,000^1.5) ^ 1/1.5 | X9: |
C10: Year | D10: 2018 | L10: | | O10: = 173,070 | X10: |
C11: deductible | D11: 20000 | L11: | | O11: ERX_2 (Earthquake Risk Exposure) with phase-in | X11: |
L12: | | O12: = ERX1 x (year - 2014)/8 + max( [East Can PML420], [West Can PML420] ) x (2022 - year)/8 | X12: |
C13: EastCan.PML.500 | E13: 40000 | G13: EastCan.PML.420 | I13: 25000 | L13: | | O13: = 173,070 x (4/8) + 125,000 x (4/8) | X13: |
C14: WestCan.PML.500 | E14: 160000 | G14: WestCan.PML.420 | I14: 125000 | L14: | | O14: = 149,035 | X14: |
L15: | | X15: |
C16: EPR | E16: 29600 | G16: EastCan.PTIV | I16: 46800 | L16: | | O16: ERC (Earthquake Reserve Component) | X16: |
C17: Financial Resources | E17: 55000 | G17: WestCan.PTIV | I17: 196800 | L17: | | O17: = ERX_2 - (Financial Resources) | X17: |
L18: | | O18: = 149,035 - 55,000 | X18: |
B19: b. | C19: (0.5 points) | L19: | | O19: = 94,035 | Q19: <== final answer | X19: |
L20: | | X20: |
C21: Identify and briefly describe 2 principles of earthquake risk management. | L21: | | M21: (0.5 points) | N21: b. | O21: Any 2 of: | X21: |
L22: | | O22: risk management | X22: |
B23: c. | C23: (0.75 points) | L23: | | O23: - earthquake exposure risk management policies are subject to oversight by Board of | X23: |
L24: | | O24: Directors and implemented by Senior Management | X24: |
C25: Identify and briefly describe 3 sound earthquake modeling practices. | L25: | | O25: data management | X25: |
L26: | | O26: - data required is MORE than for traditional ratemaking | X26: |
L27: | | O27: - must address data Integrity, Verification, Limitations (IVL) | X27: |
L28: | | O28: models | X28: |
L29: | | O29: - understand (assumptions, methods, limitations) of earthquake models | X29: |
L30: | | O30: PML (Probable Maximum Loss) | X30: |
L31: | | O31: - PML = Total Expected Ultimate Cost | X31: |
L32: | | O32: - includes considerations for data quality, non-modeled exposure, model uncertainty | X32: |
L33: | | O33: multi-region exposure | X33: |
L34: | | O34: financial resources & contingency plan | X34: |
L35: | | O35: - Financial Resources: quantification of how financial resources cover PML | X35: |
L36: | | O36: - Contingency Plan: how to continue efficient business operations after disaster | X36: |
L37: | | X37: |
L38: | | M38: (0.75 point) | N38: c. | O38: Any 3 of: | P38: [Hint: DAQKD-UP] | X38: |
L39: | | O39: Docs: | Q39: - document use of model within risk management program | X39: |
L40: | | O40: Alternative: | Q40: - explain why a particular model is used versus alternatives | X40: |
L41: | | O41: Qualified: | Q41: - qualified staff needed to run in-house models regularly | X41: |
L42: | | O42: Knowledge: | Q42: - AML (require KNOWLEDGE of Assumptions, Methods, Limits of Model) | X42: |
L43: | | O43: Data: | Q43: - must show that GRANULARITY & QUALITY of data is appropriate | X43: |
L44: | | O44: Uncertainty: | Q44: - understand how uncertainty affects: (capital adequacy, reinsurance) | X44: |
L45: | | O45: PML: | Q45: - if PML1 <> PML2: explain (differences, subsequent model adjustments) | X45: |
L46: | | X46: |
L47: | | X47: |
A48: ---- | B48: ---- | C48: ---- | D48: ---- | E48: ---- | F48: ---- | G48: ---- | H48: ---- | I48: ---- | J48: ---- | K48: ---- | L48: | | M48: ---- | N48: ---- | O48: ---- | P48: ---- | Q48: ---- | R48: ---- | S48: ---- | T48: ---- | U48: ---- | V48: ---- | W48: ---- | X48: |
L49: | | X49: |
L50: | | X50: |
L51: | | X51: |
L52: | | X52: |
L53: | | X53: |
L54: | | X54: |
L55: | | X55: |
L56: | | X56: |
L57: | | X57: |
L58: | | X58: |
L59: | | X59: |
L60: | | X60: |
L61: | | X61: |
L62: | | X62: |
L63: | | X63: |
L64: | | X64: |
L65: | | X65: |
L66: | | X66: |
L67: | | X67: |
L68: | | X68: |
L69: | | X69: |
L70: | | X70: |
L71: | | X71: |
L72: | | X72: |
L73: | | X73: |
L74: | | X74: |
L75: | | X75: |
L76: | | X76: |
L77: | | X77: |
L78: | | X78: |
L79: | | X79: |
L80: | | X80: |
L81: | | X81: |
L82: | | X82: |
L83: | | X83: |
L84: | | X84: |
L85: | | X85: |
L86: | | X86: |
L87: | | X87: |
L88: | | X88: |
L89: | | X89: |
L90: | | X90: |
L91: | | X91: |
L92: | | X92: |
L93: | | X93: |
L94: | | X94: |
A95: ---- | B95: ---- | C95: ---- | D95: ---- | E95: ---- | F95: ---- | G95: ---- | H95: ---- | I95: ---- | J95: ---- | K95: ---- | L95: | | M95: ---- | N95: ---- | O95: ---- | P95: ---- | Q95: ---- | R95: ---- | S95: ---- | T95: ---- | U95: ---- | V95: ---- | W95: ---- | X95: |

Sheet 18
A1: Exam: | B1: BattleActs 6C Practice Exam 1 (2018.Fall) | L1: | | M1: Exam: | N1: BattleActs 6C Practice Exam 1 (2018.Fall) - [ANSWER SHEET] | X1: |
A2: Question: | B2: 18 | L2: | | M2: Answer: | N2: =B2 -> 18 | X2: |
A3: Points: | B3: 3 | C3: points | L3: | | M3: Points: | N3: =B3 -> 3 | O3: points | X3: |
L4: | | X4: |
B5: For each of the following scenarios, evaluate whether risk transfer has occurred and briefly | L5: | | M5: Source: | N5: Reinsurance | X5: |
B6: explain your answer. Your explanation may be either qualitative or quantitative as approprate. | L6: | | X6: |
L7: | | M7: (0.75 points) | N7: a. | O7: transfer or risk: | Q7: - yes | X7: |
B8: a. | C8: (0.75 points) | L8: | | O8: type of method: | Q8: - qualitative | X8: |
L9: | | O9: method: | Q9: - it is self-evident | X9: |
C10: An individual purchases an annual auto insurance policy for $2,000 with no deductible and a | L10: | | Q10: - although it appears underpriced, it is a standard auto policy | X10: |
C11: limit of $500,000. There is a 20% probability of loss within the year and an expected | L11: | | X11: |
C12: severity of $25,000. | L12: | | M12: (0.75 points) | N12: b. | O12: transfer of risk: | Q12: - yes | X12: |
L13: | | O13: type of method: | Q13: - qualitative | X13: |
B14: b. | C14: (0.75 points) | L14: | | O14: method: | Q14: - apply the 'substantially all' rule | X14: |
L15: | | Q15: - the insurer can't suffer a loss, but substantially all of the risk is being | X15: |
C16: A risk manager purchases an annual 100% quota-share policy for $750,000. The portfolio | L16: | | Q16: transferred | X16: |
C17: contains 800 policies. The individual loss distribution is given in the table below: | L17: | | Q17: - this may be a situation where the risk manager wants to withdraw | X17: |
L18: | | Q18: immediately from the market | X18: |
D19: probability of loss | F19: severity of loss | L19: | | X19: |
D20: 0.95 | F20: 0 | L20: | | M20: (0.75 points) | N20: c. | O20: transfer of risk: | Q20: - no | X20: |
D21: 0.05 | F21: 12000 | L21: | | O21: type of method: | Q21: - quantitative | X21: |
L22: | | O22: method: | Q22: - calculate the expected loss for the insurer | X22: |
B23: c. | C23: (0.75 points) | L23: | | Q23: - a loss of 5m doesn't hit the 10m threshold so insurer loss = 0 | X23: |
L24: | | Q24: - a loss of 15m passes the 10m threshold, leaving 5m for the insurer | X24: |
C25: A risk manager purchases an aggregate excess-of-loss policy with the following terms: | L25: | | Q25: - but the deductible is 3m and the premium is 2m, so again the loss | X25: |
L26: | | Q26: for the insurer is 0 | X26: |
D27: coverage: | G27: 20m excess of 10m | L27: | | Q27: - since the insurer loss = 0 in all scenarios, there has been no transfer | X27: |
D28: aggregate limit: | G28: 20m | L28: | | Q28: of risk | X28: |
D29: aggregate deducible: | G29: 2m | L29: | | X29: |
D30: premium: | G30: 3m | L30: | | M30: (0.75 points) | N30: d. | O30: transfer of risk: | Q30: - no | X30: |
L31: | | O31: type of method: | Q31: - quantitative | X31: |
C32: The loss distribution for the portfolio is as follows: | L32: | | O32: method: | Q32: - ERD (Expected Reinsurer Deficit) | X32: |
L33: | | Q33: - frequency of loss = 6% | X33: |
D34: probability of loss | F34: severity of loss | L34: | | Q34: - severity of loss as a % of premium = 150/1000 = 15% | X34: |
D35: 0.8 | F35: 0 | L35: | | Q35: - ERD = frequency x severity = 6% x 15% = 0.9% < 1% | X35: |
D36: 0.1 | F36: 5m | L36: | | Q36: - this test requires ERD > 1% for transfer of risk | X36: |
D37: 0.1 | F37: 15m | L37: | | Q37: - therefore there is NO transfer of risk | X37: |
L38: | | X38: |
B39: d. | C39: (0.75 points) | L39: | | X39: |
L40: | | X40: |
C41: A risk manager purchases a policy with the following terms: | L41: | | X41: |
L42: | | X42: |
D43: premium: | F43: 1000 | L43: | | X43: |
D44: probability of loss: | F44: 0.06 | L44: | | X44: |
D45: expected severity: | F45: 150 | G45: (net of premium) | L45: | | X45: |
L46: | | X46: |
L47: | | X47: |
A48: ---- | B48: ---- | C48: ---- | D48: ---- | E48: ---- | F48: ---- | G48: ---- | H48: ---- | I48: ---- | J48: ---- | K48: ---- | L48: | | M48: ---- | N48: ---- | O48: ---- | P48: ---- | Q48: ---- | R48: ---- | S48: ---- | T48: ---- | U48: ---- | V48: ---- | W48: ---- | X48: |
L49: | | X49: |
L50: | | X50: |
L51: | | X51: |
L52: | | X52: |
L53: | | X53: |
L54: | | X54: |
L55: | | X55: |
L56: | | X56: |
L57: | | X57: |
L58: | | X58: |
L59: | | X59: |
L60: | | X60: |
L61: | | X61: |
L62: | | X62: |
L63: | | X63: |
L64: | | X64: |
L65: |
L66: |
L67: |
L68: |
L69: |
L70: |
L71: |
L72: |
L73: |
L74: |
L75: |
L76: |
L77: |
L78: |
L79: |
L80: |
L81: |
L82: |
L83: |
L84: |
L85: |
L86: |
L87: |
L88: |
L89: |
L90: |
L91: |
L92: |
L93: |
L94: |
A95: ---- | B95: ---- | C95: ---- | D95: ---- | E95: ---- | F95: ---- | G95: ---- | H95: ---- | I95: ---- | J95: ---- | K95: ---- | L95: | | M95: ---- | N95: ---- | O95: ---- | P95: ---- | Q95: ---- | R95: ---- | S95: ---- | T95: ---- | U95: ---- | V95: ---- | W95: ---- | X95: |

Sheet 19
A1: Exam: | B1: BattleActs 6C Practice Exam 1 (2018.Fall) | L1: | | M1: Exam: | N1: BattleActs 6C Practice Exam 1 (2018.Fall) - [ANSWER SHEET] | X1: |
A2: Question: | B2: 19 | L2: | | M2: Answer: | N2: =B2 -> 19 | X2: |
A3: Points: | B3: 3.5 | C3: points | L3: | | M3: Points: | N3: =B3 -> 3.5 | O3: points | X3: |
L4: | | X4: |
B5: a. | C5: (1 point) | L5: | | M5: Source: | N5: CIA.DCAT | X5: |
L6: | | X6: |
C7: Given the following information about Company A and Company B, explain whether | L7: | | M7: (1 point) | N7: a. | O7: Requirements for good financial condition: | X7: |
C8: the appointed actuary can conclude whether each company is in good financial condition. | L8: | | O8: [1] MCT ratio > 150% (for base scenario, for all years) | X8: |
L9: | | O9: [2] Capital > 0 (for all years) | X9: |
C10: Company A | E10: Metric | F10: 2019 | G10: 2020 | H10: 2021 | L10: | | X10: |
C11: Base Scenario | E11: MCT Ratio | F11: 1.5 | G11: 1.75 | H11: 2 | L11: | | O11: Company A: cannot conclude good financial condition | X11: |
E12: Capital (000s) | F12: 10000 | G12: 15000 | H12: 20000 | L12: | | O12: - condition [1] is satisfied | X12: |
C13: Adverse Scenario | E13: MCT Ratio | F13: 1.2 | G13: 1.55 | H13: 1.6 | L13: | | O13: - condition [2] is not satisfied because capital for adverse scenario in 2019 is -5,000 | X13: |
E14: Capital (000s) | F14: -5000 | G14: 10000 | H14: 15000 | L14: | | X14: |
L15: | | O15: Company B: good financial condition | X15: |
C16: Company B | E16: Metric | F16: 2019 | G16: 2020 | H16: 2021 | L16: | | O16: - condition [1] is satisfied | X16: |
C17: Base Scenario | E17: MCT Ratio | F17: 2 | G17: 1.75 | H17: 1.5 | L17: | | O17: - condition [2] is satisfied because capital > 0 for base & adverse scenario for all years | X17: |
E18: Capital (000s) | F18: 2000 | G18: 1000 | H18: 300 | L18: | | X18: |
C19: Adverse Scenario | E19: MCT Ratio | F19: 1.3 | G19: 1.2 | H19: 0.9 | L19: | | M19: (0.5 points) | N19: b. | O19: I would invest in Company A. Even though the appointed actuary cannot technically | X19: |
E20: Capital (000s) | F20: 500 | G20: 200 | H20: 0.001 | L20: | | O20: conclude that Company A is in good condition, its MCT ratio and capital are trending | X20: |
L21: | | O21: upwards. The negative capital for the adverse scenario in 2019 is the only weak area in | X21: |
B22: b. | C22: (0.5 points) | L22: | | O22: a company with an otherwise positive outlook. | X22: |
L23: | | X23: |
C24: If you were given the choice of investing in either Company A or Company B, based | L24: | | O24: The MCT ratio and capital for Company B is trending downward. They were very close to | X24: |
C25: only on the information given above, what would you do? Briefly explain your answer. | L25: | | O25: being considered in unsatisfactory financial condition due to the capital for the adverse | X25: |
L26: | | O26: scenario in 2021 being so close to 0. | X26: |
B27: c. | C27: (1 point) | L27: | | X27: |
L28: | | O28: The moral of this story: This simple test of whether a company is in good financial | X28: |
C29: Suppose the adverse scenario in Company A is an increase in frequency and severity | L29: | | O29: condition is only a starting point. The concept is simplified so that it can be solved in | X29: |
C30: of losses due to a hurricane. Identify 2 possible ripple effects and 2 possible management | L30: | | O30: an exam setting. | X30: |
C31: actions. | L31: | | X31: |
L32: | | M32: (1 point) | N32: c. | O32: There are lots of valid answers. Here are the ones I chose: | X32: |
B33: d. | C33: (1 point) | L33: | | O33: ripple effects: | X33: |
L34: | | O34: - post-event inflation (shortage of labour and building materials for repair) | X34: |
C35: Define the following terms: | L35: | | O35: - loss of reinsurance (reinsurers might raise rates or terminate coverage) | X35: |
C36: i | D36: plausible adverse scenario | L36: | | O36: management actions: | X36: |
C37: ii | D37: reverse stress testing | L37: | | O37: - raise rates to recover losses in a future experience period | X37: |
L38: | | O38: - review reinsurance requirements and options | X38: |
L39: | | X39: |
L40: | | M40: (1 point) | N40: d. | O40: plausible adverse scenario: | X40: |
L41: | | O41: - (set of assumptions) for an (undesirable but reasonably possible event) relating to | X41: |
L42: | | O42: (insurer's financial condition) | X42: |
L43: | | O43: - statistically, the scenario should lie between the 95th and 99th percentile on the loss | X43: |
L44: | | O44: distribution (the CAS seems to require this as part of the definition) | X44: |
L45: | | O45: reverse stress testing: | X45: |
L46: | | O46: - HOW FAR must risk factors change TO DRIVE the insurer's surplus negative during forecast | X46: |
L47: | | O47: period THEN determine whether such change is plausible | X47: |
A48: ---- | B48: ---- | C48: ---- | D48: ---- | E48: ---- | F48: ---- | G48: ---- | H48: ---- | I48: ---- | J48: ---- | K48: ---- | L48: | | M48: ---- | N48: ---- | O48: ---- | P48: ---- | Q48: ---- | R48: ---- | S48: ---- | T48: ---- | U48: ---- | V48: ---- | W48: ---- | X48: |
L49: | | X49: |
L50: | | X50: |
L51: | | X51: |
L52: | | X52: |
L53: | | X53: |
L54: | | X54: |
L55: | | X55: |
L56: | | X56: |
L57: | | X57: |
L58: | | X58: |
L59: | | X59: |
L60: | | X60: |
L61: | | X61: |
L62: | | X62: |
L63: | | X63: |
L64: | | X64: |
L65: |
L66: |
L67: |
L68: |
L69: |
L70: |
L71: |
L72: |
L73: |
L74: |
L75: |
L76: |
L77: |
L78: |
L79: |
L80: |
L81: |
L82: |
L83: |
L84: |
L85: |
L86: |
L87: |
L88: |
L89: |
L90: |
L91: |
L92: |
L93: |
L94: |
A95: ---- | B95: ---- | C95: ---- | D95: ---- | E95: ---- | F95: ---- | G95: ---- | H95: ---- | I95: ---- | J95: ---- | K95: ---- | L95: | | M95: ---- | N95: ---- | O95: ---- | P95: ---- | Q95: ---- | R95: ---- | S95: ---- | T95: ---- | U95: ---- | V95: ---- | W95: ---- | X95: |

Sheet 20
A1: Exam: | B1: BattleActs 6C Practice Exam 1 (2018.Fall) | L1: | | M1: Exam: | N1: BattleActs 6C Practice Exam 1 (2018.Fall) - [ANSWER SHEET] | X1: |
A2: Question: | B2: 20 | L2: | | M2: Answer: | N2: =B2 -> 20 | X2: |
A3: Points: | B3: 3.5 | C3: points | L3: | | M3: Points: | N3: =B3 -> 3.5 | O3: points | X3: |
L4: | | X4: |
B5: a. | C5: (1.5 points) | L5: | | M5: Source: | N5: CIA.MfAD | X5: |
L6: | | X6: |
C7: Calculate the APV (Actuarial Present Value) of the unpaid loss. | L7: | | M7: (1.5 points) | N7: a. | O7: net unpaid at 6.75% | R7: 57796 | S7: ----------------------------------> | V7: =R7 -> 57796 | X7: |
L8: | | O8: net unpaid at 7.5% | R8: 57466 | S8: x | T8: 0.1 | U8: ----> | V8: =R8*T8 -> 5746.6 | X8: |
C9: net unpaid at 12 months | F9: 61000 | H9: MfAD(inv) | J9: 75 bps | L9: | | O9: ceded unpaid at 7.5% | R9: 1884 | S9: x | T9: 0.12 | U9: ----> | V9: =R9*T9 -> 226.08 | X9: |
C10: ceded unpaid at 12 months | F10: 2000 | H10: MfAD(claims) | J10: 0.1 | L10: | | U10: APV = | V10: =SUM(V7:V9) -> 63768.68 | X10: |
C11: discount rate | F11: 0.075 | H11: MfAD(re) | J11: 0.12 | L11: | | X11: |
L12: | | M12: (0.75 points) | N12: b. | O12: i | P12: [2.5%, 20%] | X12: |
C13: Age | D13: Cumulative Paid Loss % | L13: | | O13: ii | P13: [0, 15%] | X13: |
C14: 12 | D14: 0.4 | L14: | | O14: iii | P14: [25bps, 200bps] | R14: (bps = basis points) | X14: |
C15: 24 | D15: 0.8 | L15: | | X15: |
C16: 36 | D16: 1 | L16: | | M16: (1.25 points) | N16: c. | O16: E < D < B < C < A | X16: |
L17: | | X17: |
B18: b. | C18: (0.75 points) | L18: | | O18: E: | P18: margin = 0 because all claims are settled and there is no risk | X18: |
L19: | | P19: (number of claims is not relevant) | X19: |
C20: Identify the standard ranges for margins for adverse development for: | L20: | | O20: D: | P20: auto physical damage is short-tailed, company has good operations | X20: |
C21: i | D21: claims development | L21: | | P21: (number of claims = 5000, and this will be important in the next 2 steps) | X21: |
C22: ii | D22: reinsurance ceded | L22: | | O22: B: | P22: auto liability is longer-tailed, company has good operations | X22: |
C23: iii | D23: investment return rate | L23: | | P23: (number of claims = 5000, same as D, but different line of business) | X23: |
L24: | | O24: C: | P24: key fact is number of claims = 2500, otherwise same as B | X24: |
B25: c. | C25: (1.25 points) | L25: | | P25: (fewer claims = greater risk of deviation) | X25: |
L26: | | O26: A: | P26: catastrophe events have the greatest uncertainty | X26: |
C27: Can you rank the following reserve analysis situations from 'lowest to highest' in terms | L27: | | X27: |
C28: of the claims development '% risk margin' each would require on their point estimates? | L28: | | X28: |
L29: | | X29: |
C30: A | D30: 1 severe hurricane event (1 month old) | L30: | | X30: |
C31: B | D31: 5,000 auto liability claims (AY 17 at 12/31/17), company has good operations | L31: | | X31: |
C32: C | D32: 2,500 auto liability claims (AY 17 at 12/3117), company has good operations | L32: | | X32: |
C33: D | D33: 5,000 auto physical damage claims (AY 17 at 12/3117), company has good opns | L33: | | X33: |
C34: E | D34: 1,000 auto physical damage claims (20 year-old accident year), all claims settled | L34: | | X34: |
L35: | | X35: |
L36: | | X36: |
L37: | | X37: |
L38: | | X38: |
L39: | | X39: |
L40: | | X40: |
L41: | | X41: |
L42: | | X42: |
L43: | | X43: |
L44: | | X44: |
L45: | | X45: |
L46: | | X46: |
L47: | | X47: |
A48: ---- | B48: ---- | C48: ---- | D48: ---- | E48: ---- | F48: ---- | G48: ---- | H48: ---- | I48: ---- | J48: ---- | K48: ---- | L48: | | M48: ---- | N48: ---- | O48: ---- | P48: ---- | Q48: ---- | R48: ---- | S48: ---- | T48: ---- | U48: ---- | V48: ---- | W48: ---- | X48: |
L49: | | X49: |
L50: | | X50: |
L51: | | X51: |
L52: | | X52: |
L53: | | X53: |
L54: | | X54: |
L55: | | X55: |
L56: | | X56: |
L57: | | X57: |
L58: | | X58: |
L59: | | X59: |
L60: | | X60: |
L61: | | X61: |
L62: | | X62: |
L63: | | X63: |
L64: | | X64: |
L65: |
L66: |
L67: |
L68: |
L69: |
L70: |
L71: |
L72: |
L73: |
L74: |
L75: |
L76: |
L77: |
L78: |
L79: |
L80: |
L81: |
L82: |
L83: |
L84: |
L85: |
L86: |
L87: |
L88: |
L89: |
L90: |
L91: |
L92: |
L93: |
L94: |
A95: ---- | B95: ---- | C95: ---- | D95: ---- | E95: ---- | F95: ---- | G95: ---- | H95: ---- | I95: ---- | J95: ---- | K95: ---- | L95: | | M95: ---- | N95: ---- | O95: ---- | P95: ---- | Q95: ---- | R95: ---- | S95: ---- | T95: ---- | U95: ---- | V95: ---- | W95: ---- | X95: |

Sheet 21
A1: Exam: | B1: BattleActs 6C Practice Exam 1 (2018.Fall) | L1: | | M1: Exam: | N1: BattleActs 6C Practice Exam 1 (2018.Fall) - [ANSWER SHEET] | X1: |
A2: Question: | B2: 21 | L2: | | M2: Answer: | N2: =B2 -> 21 | X2: |
A3: Points: | B3: 1.75 | C3: points | L3: | | M3: Points: | N3: =B3 -> 1.75 | O3: points | X3: |
L4: | | X4: |
B5: a. | C5: (0.75 points) | L5: | | M5: Source: | N5: BCAR.Cdn | X5: |
L6: | | X6: |
C7: Identify and briefly describe 3 categories of risk considered in A.M. Best BCAR. | L7: | | M7: (0.75 points) | N7: a. | O7: Hint: ICU | P7: (Remember Alice the Actuary and her epic snowboarding fail! OUCH!) | X7: |
L8: | | O8: Investment risk: | Q8: Fixed income securities, Equities, Interest rates [Hint: FEI] | X8: |
B9: b. | C9: (0.5 points) | L9: | | O9: Credit risk: | Q9: counterparty default risk | X9: |
L10: | | O10: U/W risk: | Q10: excessive growth, loss reserves, mix shifts | X10: |
C11: Briefly describe 1 difference between the Canadian and American BCAR calculation. | L11: | | X11: |
L12: | | M12: (0.5 points) | N12: b. | O12: Any 1 of: | X12: |
B13: c. | C13: (0.5 points) | L13: | | O13: interest rate risk component: | X13: |
L14: | | O14: - Canada considers market-value decline of an insurer's fixed-income portfolio due to | X14: |
C15: Identify a conceptual difference between MCT and BCAR regarding the time horizon. | L15: | | O15: rising interest rates | X15: |
L16: | | O16: U/W risk component: | X16: |
L17: | | O17: - makes adjustments for reported suprlus (Ex: eliminates intangible assets) | X17: |
L18: | | X18: |
L19: | | M19: (0.5 points) | N19: c. | O19: BCAR: | P19: - capital must support current & future premium risk | X19: |
L20: | | O20: MCT: | P20: - focuses more on current year's risk | X20: |
L21: | | X21: |
L22: | | O22: Note: | P22: DCAT usually projects for 3 years, so if you combine MCT with DCAT, you get a | X22: |
L23: | | P23: longer time horizon (not part of answer, just a side note.) | X23: |
L24: | | X24: |
L25: | | X25: |
L26: | | X26: |
L27: | | X27: |
L28: | | X28: |
L29: | | X29: |
L30: | | X30: |
L31: | | X31: |
L32: | | X32: |
L33: | | X33: |
L34: | | X34: |
L35: | | X35: |
L36: | | X36: |
L37: | | X37: |
L38: | | X38: |
L39: | | X39: |
L40: | | X40: |
L41: | | X41: |
L42: | | X42: |
L43: | | X43: |
L44: | | X44: |
L45: | | X45: |
L46: | | X46: |
L47: | | X47: |
A48: ---- | B48: ---- | C48: ---- | D48: ---- | E48: ---- | F48: ---- | G48: ---- | H48: ---- | I48: ---- | J48: ---- | K48: ---- | L48: | | M48: ---- | N48: ---- | O48: ---- | P48: ---- | Q48: ---- | R48: ---- | S48: ---- | T48: ---- | U48: ---- | V48: ---- | W48: ---- | X48: |
L49: | | X49: |
L50: | | X50: |
L51: | | X51: |
L52: | | X52: |
L53: | | X53: |
L54: | | X54: |
L55: | | X55: |
L56: | | X56: |
L57: | | X57: |
L58: | | X58: |
L59: | | X59: |
L60: | | X60: |
L61: | | X61: |
L62: | | X62: |
L63: | | X63: |
L64: | | X64: |
L65: |
L66: |
L67: |
L68: |
L69: |
L70: |
L71: |
L72: |
L73: |
L74: |
L75: |
L76: |
L77: |
L78: |
L79: |
L80: |
L81: |
L82: |
L83: |
L84: |
L85: |
L86: |
L87: |
L88: |
L89: |
L90: |
L91: |
L92: |
L93: |
L94: |
A95: ---- | B95: ---- | C95: ---- | D95: ---- | E95: ---- | F95: ---- | G95: ---- | H95: ---- | I95: ---- | J95: ---- | K95: ---- | L95: | | M95: ---- | N95: ---- | O95: ---- | P95: ---- | Q95: ---- | R95: ---- | S95: ---- | T95: ---- | U95: ---- | V95: ---- | W95: ---- | X95: |

Sheet 22
A1: Exam: | B1: BattleActs 6C Practice Exam 1 (2018.Fall) | L1: | | M1: Exam: | N1: BattleActs 6C Practice Exam 1 (2018.Fall) - [ANSWER SHEET] | X1: |
A2: Question: | B2: 22 | L2: | | M2: Answer: | N2: =B2 -> 22 | X2: |
A3: Points: | B3: 2 | C3: points | L3: | | M3: Points: | N3: =B3 -> 2 | O3: points | X3: |
L4: | | X4: |
B5: a. | C5: (0.75 points) | L5: | | M5: Source: | N5: CIA.Disclosure, CIA.Runoff, CIA.DIscnt | X5: |
L6: | | X6: |
C7: Identify 3 considerations in determining concentration risk of an insurer. | L7: | | M7: (0.75 points) | N7: a. | O7: Any 3 of: | X7: |
L8: | | O8: diversification: | Q8: - by line of business (more lines is better) | X8: |
B9: b. | C9: (0.5 points) | L9: | | O9: diversification: | Q9: - geographically (greater diversification is better) | X9: |
L10: | | O10: U/W limit: | Q10: - lower is better | X10: |
C11: Briefly describe the 2 approaches which account for the time value of money when | L11: | | O11: reinsurance: | Q11: - more sources of reinsurance is better | X11: |
C12: evaluating the runoff of claims liabilities. | L12: | | X12: |
L13: | | M13: (0.5 points) | N13: b. | O13: - discount the paid & unpaid amounts at time t back to time t - 1 | X13: |
B14: c. | C14: (0.75 points) | L14: | | O14: - subtract investment income earned during calendar year t on supporting assets and | X14: |
L15: | | O15: liabilities | X15: |
C16: Identify 3 considerations in determining the interest rate used to discount policy liabilities. | L16: | | X16: |
L17: | | M17: (0.75 points) | N17: c. | O17: Any 3 of: [Hint: MARY-(IE)-CapG] | X17: |
L18: | | O18: Methods for asset valuation and reporting investment income | X18: |
L19: | | O19: Allocation of assets and investment income by LOB | X19: |
L20: | | O20: Return on assets at balance sheet date | X20: |
L21: | | O21: Yield on assets acquired after balance sheet date | X21: |
L22: | | O22: Investment Expenses and losses from default | X22: |
L23: | | O23: CapG: capital gains/losses on assets sold after balance sheet date | X23: |
L24: | | X24: |
L25: | | M25: Notes: | N25: a. | O25: from wiki article CIA.Disclosure | X25: |
L26: | | N26: b. | O26: from wiki article CIA.Runoff and 2016.Fall #26d | X26: |
L27: | | N27: c. | O27: from wiki article CIA.Discnt and BattleHack #1: Top Questions | X27: |
L28: | | X28: |
L29: | | X29: |
L30: | | X30: |
L31: | | X31: |
L32: | | X32: |
L33: | | X33: |
L34: | | X34: |
L35: | | X35: |
L36: | | X36: |
L37: | | X37: |
L38: | | X38: |
L39: | | X39: |
L40: | | X40: |
L41: | | X41: |
L42: | | X42: |
L43: | | X43: |
L44: | | X44: |
L45: | | X45: |
L46: | | X46: |
L47: | | X47: |
A48: ---- | B48: ---- | C48: ---- | D48: ---- | E48: ---- | F48: ---- | G48: ---- | H48: ---- | I48: ---- | J48: ---- | K48: ---- | L48: | | M48: ---- | N48: ---- | O48: ---- | P48: ---- | Q48: ---- | R48: ---- | S48: ---- | T48: ---- | U48: ---- | V48: ---- | W48: ---- | X48: |
L49: | | X49: |
L50: | | X50: |
L51: | | X51: |
L52: | | X52: |
L53: | | X53: |
L54: | | X54: |
L55: | | X55: |
L56: | | X56: |
L57: | | X57: |
L58: | | X58: |
L59: | | X59: |
L60: | | X60: |
L61: | | X61: |
L62: | | X62: |
L63: | | X63: |
L64: | | X64: |
L65: |
L66: |
L67: |
L68: |
L69: |
L70: |
L71: |
L72: |
L73: |
L74: |
L75: |
L76: |
L77: |
L78: |
L79: |
L80: |
L81: |
L82: |
L83: |
L84: |
L85: |
L86: |
L87: |
L88: |
L89: |
L90: |
L91: |
L92: |
L93: |
L94: |
A95: ---- | B95: ---- | C95: ---- | D95: ---- | E95: ---- | F95: ---- | G95: ---- | H95: ---- | I95: ---- | J95: ---- | K95: ---- | L95: | | M95: ---- | N95: ---- | O95: ---- | P95: ---- | Q95: ---- | R95: ---- | S95: ---- | T95: ---- | U95: ---- | V95: ---- | W95: ---- | X95: |

Sheet 23
A1: Exam: | B1: BattleActs 6C Practice Exam 1 (2018.Fall) | L1: | | M1: Exam: | N1: BattleActs 6C Practice Exam 1 (2018.Fall) - [ANSWER SHEET] | X1: |
A2: Question: | B2: 23 | L2: | | M2: Answer: | N2: =B2 -> 23 | X2: |
A3: Points: | B3: 3 | C3: points | L3: | | M3: Points: | N3: =B3 -> 3 | O3: points | X3: |
L4: | | X4: |
B5: a. | C5: (0.5 points) | L5: | | M5: Source: | N5: Feld.RtAgs | X5: |
L6: | | X6: |
C7: Rating agencies are supposed to provide reliable financial strength ratings to insurers. | L7: | | M7: (0.5 points) | N7: a. | O7: shortcomings: | X7: |
C8: Examples of well known rating agencies are A.M. Best, Moody's, and Standard & Poor's. | L8: | | O8: - there is a conflict of interest because rating agencies are paid by the companies they rate | X8: |
C9: Identify 2 shortcomings of rating agencies. | L9: | | O9: - rating agencies have a history of unreliability (they have given high ratings to companies | X9: |
L10: | | O10: that subsequently went bankrupt) | X10: |
B11: b. | C11: (0.5 points) | L11: | | X11: |
L12: | | M12: (0.5 points) | N12: b. | O12: interactive rating: | X12: |
C13: Rating agencies often use a rating method called 'interactive rating'. Define this term. | L13: | | O13: - an independent assessment of an insurer's ability to pay claims BASED ON a | X13: |
L14: | | O14: comprehensive qualitative & quantitative analysis | X14: |
B15: c. | C15: (1.25 points) | L15: | | X15: |
L16: | | M16: (1.25 points) | N16: c. | O16: the 5 steps: [Hint: RM-PDP] | X16: |
C17: Identify the 5 steps in the interactive rating methodology. | L17: | | O17: Research - by rating analysts (insurer submits proprietary info) | X17: |
L18: | | O18: Meeting - between rating analysts and insurer's senior management for presentations | X18: |
B19: d. | C19: (0.75 points) | L19: | | O19: Proposal - the rating analyst leader proposes a rating (insurer may submit further info) | X19: |
L20: | | O20: Decision - by ratings committee | X20: |
C21: Interactive ratings can be intrusive, time-consuming, and expensive. Identify 3 reasons | L21: | | O21: Publication - to public & fee-paying subscribers | X21: |
C22: that insurers participate in them anyway. | L22: | | X22: |
L23: | | M23: (0.75 points) | N23: d. | O23: reasons for participating in interactive rating: [Hint: USE] | X23: |
L24: | | O24: Unrated insurers: agents are wary of unrated insurers | X24: |
L25: | | O25: Solvency assessment: 3rd parties such as regulators or investors may rely on a rating | X25: |
L26: | | O26: agency assessment | X26: |
L27: | | O27: Efficiency: agents, U/W, regulators don't have the expertise to evaluate the financial | X27: |
L28: | | O28: strength of an insurer | X28: |
L29: | | X29: |
L30: | | X30: |
L31: | | X31: |
L32: | | X32: |
L33: | | X33: |
L34: | | X34: |
L35: | | X35: |
L36: | | X36: |
L37: | | X37: |
L38: | | X38: |
L39: | | X39: |
L40: | | X40: |
L41: | | X41: |
L42: | | X42: |
L43: | | X43: |
L44: | | X44: |
L45: | | X45: |
L46: | | X46: |
L47: | | X47: |
A48: ---- | B48: ---- | C48: ---- | D48: ---- | E48: ---- | F48: ---- | G48: ---- | H48: ---- | I48: ---- | J48: ---- | K48: ---- | L48: | | M48: ---- | N48: ---- | O48: ---- | P48: ---- | Q48: ---- | R48: ---- | S48: ---- | T48: ---- | U48: ---- | V48: ---- | W48: ---- | X48: |
L49: | | X49: |
L50: | | X50: |
L51: | | X51: |
L52: | | X52: |
L53: | | X53: |
L54: | | X54: |
L55: | | X55: |
L56: | | X56: |
L57: | | X57: |
L58: | | X58: |
L59: | | X59: |
L60: | | X60: |
L61: | | X61: |
L62: | | X62: |
L63: | | X63: |
L64: | | X64: |
L65: |
L66: |
L67: |
L68: |
L69: |
L70: |
L71: |
L72: |
L73: |
L74: |
L75: |
L76: |
L77: |
L78: |
L79: |
L80: |
L81: |
L82: |
L83: |
L84: |
L85: |
L86: |
L87: |
L88: |
L89: |
L90: |
L91: |
L92: |
L93: |
L94: |
A95: ---- | B95: ---- | C95: ---- | D95: ---- | E95: ---- | F95: ---- | G95: ---- | H95: ---- | I95: ---- | J95: ---- | K95: ---- | L95: | | M95: ---- | N95: ---- | O95: ---- | P95: ---- | Q95: ---- | R95: ---- | S95: ---- | T95: ---- | U95: ---- | V95: ---- | W95: ---- | X95: |

Sheet 24
A1: Exam: | B1: BattleActs 6C Practice Exam 1 (2018.Fall) | L1: | | M1: Exam: | N1: BattleActs 6C Practice Exam 1 (2018.Fall) - [ANSWER SHEET] | X1: |
A2: Question: | B2: 24 | L2: | | M2: Answer: | N2: =B2 -> 24 | X2: |
A3: Points: | B3: 2 | C3: points | L3: | | M3: Points: | N3: =B3 -> 2 | O3: points | X3: |
L4: | | X4: |
B5: a. | C5: (1.5 points) | L5: | | M5: Source: | N5: OSFI.ORSA | X5: |
L6: | | X6: |
C7: Describe 3 key elements of ORSA. | L7: | | M7: (1.5 points) | N7: a. | O7: Any 3 of: | X7: |
L8: | | O8: risk identification and assessment: | X8: |
B9: b. | C9: (0.5 points) | L9: | | O9: - identify & assess the materiality of foreseeable & emerging risks | X9: |
L10: | | O10: relate risk to capital: | X10: |
C11: Comment on the following statement: | L11: | | O11: - set internal capital using stress-testing techniques | X11: |
L12: | | O12: - must withstand a specified loss without falling below supervisory capital requirements | X12: |
C13: All federally regulated companies must implement the same ORSA process. | L13: | | O13: responsibilities of Board of Directors: | X13: |
L14: | | O14: - review reasonableness & appropriateness of risk profile & capital requirements in the | X14: |
L15: | | O15: context of board approved risk appetite & risk tolerance | X15: |
L16: | | O16: monitoring & reporting of risks: | X16: |
L17: | | O17: - annual reports to Board of Directors & Senior Management on risk profile & capital | X17: |
L18: | | O18: assessment | X18: |
L19: | | O19: internal controls & objective review | X19: |
L20: | | O20: - review for accuracy, integrity, reasonableness | X20: |
L21: | | O21: - objective reviewer: internal or external auditor OR skilled professional not involved in | X21: |
L22: | | O22: the ORSA process | X22: |
L23: | | X23: |
L24: | | O24: NOTE: The answers given in the examiner's report for 2015.Fall #23 are very long. I think | X24: |
L25: | | O25: shorter answers could still receive full credit because each element is only worth 0.5 points. | X25: |
L26: | | X26: |
L27: | | M27: (0.5 points) | N27: b. | O27: Yes and no: | X27: |
L28: | | O28: - key elements are the same (see part a) | X28: |
L29: | | O29: - but specifics differ by company depending on risk profile and NSC of operations. | X29: |
L30: | | O30: (NSC stands for Nature/Scale/Complexity) | X30: |
L31: | | X31: |
L32: | | X32: |
L33: | | X33: |
L34: | | X34: |
L35: | | X35: |
L36: | | X36: |
L37: | | X37: |
L38: | | X38: |
L39: | | X39: |
L40: | | X40: |
L41: | | X41: |
L42: | | X42: |
L43: | | X43: |
L44: | | X44: |
L45: | | X45: |
L46: | | X46: |
L47: | | X47: |
A48: ---- | B48: ---- | C48: ---- | D48: ---- | E48: ---- | F48: ---- | G48: ---- | H48: ---- | I48: ---- | J48: ---- | K48: ---- | L48: | | M48: ---- | N48: ---- | O48: ---- | P48: ---- | Q48: ---- | R48: ---- | S48: ---- | T48: ---- | U48: ---- | V48: ---- | W48: ---- | X48: |
L49: | | X49: |
L50: | | X50: |
L51: | | X51: |
L52: | | X52: |
L53: | | X53: |
L54: | | X54: |
L55: | | X55: |
L56: | | X56: |
L57: | | X57: |
L58: | | X58: |
L59: | | X59: |
L60: | | X60: |
L61: | | X61: |
L62: | | X62: |
L63: | | X63: |
L64: | | X64: |
L65: |
L66: |
L67: |
L68: |
L69: |
L70: |
L71: |
L72: |
L73: |
L74: |
L75: |
L76: |
L77: |
L78: |
L79: |
L80: |
L81: |
L82: |
L83: |
L84: |
L85: |
L86: |
L87: |
L88: |
L89: |
L90: |
L91: |
L92: |
L93: |
L94: |
A95: ---- | B95: ---- | C95: ---- | D95: ---- | E95: ---- | F95: ---- | G95: ---- | H95: ---- | I95: ---- | J95: ---- | K95: ---- | L95: | | M95: ---- | N95: ---- | O95: ---- | P95: ---- | Q95: ---- | R95: ---- | S95: ---- | T95: ---- | U95: ---- | V95: ---- | W95: ---- | X95: |

Sheet 25
A1: Exam: | B1: BattleActs 6C Practice Exam 1 (2018.Fall) | L1: | | M1: Exam: | N1: BattleActs 6C Practice Exam 1 (2018.Fall) - [ANSWER SHEET] | X1: |
A2: Question: | B2: 25 | L2: | | M2: Answer: | N2: =B2 -> 25 | X2: |
A3: Points: | B3: 4 | C3: points | L3: | | M3: Points: | N3: =B3 -> 4 | O3: points | X3: |
L4: | | X4: |
B5: a. | C5: (1.5 points) | L5: | | M5: Source: | N5: CIA.Models | X5: |
L6: | | X6: |
C7: According to the CIA paper on modeling, define the following terms: | L7: | | M7: (1.5 points) | N7: a. | O7: i | P7: model: | X7: |
C8: i | D8: model | L8: | | P8: - a practical representation of relationships among entities using FEMS concepts | X8: |
C9: ii | D9: model elements | L9: | | P9: (Note: FEMS stands for Financial/Economic/Mathematical/Statistical) | X9: |
C10: iii | D10: model risk | L10: | | O10: ii | P10: model elements: | X10: |
L11: | | P11: - all models require 3 elements: [Hint: SIR] | X11: |
B12: b. | C12: (0.5 points) | L12: | | P12: - model Specification | X12: |
L13: | | P13: - model Implementation | X13: |
C14: Model risk is measured across 2 dimensions. Identify these dimensions. | L14: | | P14: - model Run | X14: |
L15: | | P15: (Note: for 0.5 points, you don't have to explain Specification or Implementation) | X15: |
B16: c. | C16: (2 points) | L16: | | O16: iii | P16: model risk | X16: |
L17: | | P17: - the risk that the user will draw inappropriate conclusions due to shortcomings | X17: |
C18: Given the following information, use the 2-dimensional model risk rating system to | L18: | | P18: of the model or its use | X18: |
C19: evaluate the overall model risk. | L19: | | X19: |
L20: | | M20: (0.5 points) | N20: b. | O20: severity of failure, likelihood of failure | X20: |
C21: task: | D21: forecast capital requirements | L21: | | X21: |
C22: method: | D22: used an established Excel model of moderate complexity with only minor updates | L22: | | M22: (2 points) | N22: c. | O22: For severity of failure, consider: [Hint: FIF] | X22: |
L23: | | O23: Financial significance: high (so risk is high) | X23: |
C24: model risk considerations: | L24: | | O24: Importance of Model: no info provided | X24: |
C25: - capital requirements are significant | L25: | | O25: Frequency of use: high (so risk is high) | X25: |
C26: - model is used frequently | L26: | | O26: Conclusion: severity risk is HIGH | X26: |
C27: - there is excellent documentation for the model | L27: | | X27: |
C28: - the 2 best actuarial analysts in the company are running the model | L28: | | O28: For likelihood of failure, consider | X28: |
L29: | | O29: complexity: | Q29: - moderate (so risk is moderate) | X29: |
L30: | | O30: expertise of user: | Q30: - high (so risk is low) | X30: |
L31: | | O31: docs: | Q31: - excellent (so risk is low) | X31: |
L32: | | O32: testing: | Q32: - thorough, since it's an established model (so risk is low) | X32: |
L33: | | O33: Conclusion: likelihood of failure is LOW | X33: |
L34: | | X34: |
L35: | | O35: Overall conclusion: risk of model failure is MODERATE | X35: |
L36: | | X36: |
L37: | | X37: |
L38: | | X38: |
L39: | | X39: |
L40: | | X40: |
L41: | | X41: |
L42: | | X42: |
L43: | | X43: |
L44: | | X44: |
L45: | | X45: |
L46: | | X46: |
L47: | | X47: |
A48: ---- | B48: ---- | C48: ---- | D48: ---- | E48: ---- | F48: ---- | G48: ---- | H48: ---- | I48: ---- | J48: ---- | K48: ---- | L48: | | M48: ---- | N48: ---- | O48: ---- | P48: ---- | Q48: ---- | R48: ---- | S48: ---- | T48: ---- | U48: ---- | V48: ---- | W48: ---- | X48: |
L49: | | X49: |
L50: | | X50: |
L51: | | X51: |
L52: | | X52: |
L53: | | X53: |
L54: | | X54: |
L55: | | X55: |
L56: | | X56: |
L57: | | X57: |
L58: | | X58: |
L59: | | X59: |
L60: | | X60: |
L61: | | X61: |
L62: | | X62: |
L63: | | X63: |
L64: | | X64: |
L65: | | X65: |
L66: | | X66: |
L67: | | X67: |
L68: | | X68: |
L69: | | X69: |
L70: | | X70: |
L71: | | X71: |
L72: | | X72: |
L73: | | X73: |
L74: | | X74: |
L75: | | X75: |
L76: | | X76: |
L77: | | X77: |
L78: | | X78: |
L79: | | X79: |
L80: | | X80: |
L81: | | X81: |
L82: | | X82: |
L83: | | X83: |
L84: | | X84: |
L85: | | X85: |
L86: | | X86: |
L87: | | X87: |
L88: | | X88: |
L89: | | X89: |
L90: | | X90: |
L91: | | X91: |
L92: | | X92: |
L93: | | X93: |
L94: | | X94: |
A95: ---- | B95: ---- | C95: ---- | D95: ---- | E95: ---- | F95: ---- | G95: ---- | H95: ---- | I95: ---- | J95: ---- | K95: ---- | L95: | | M95: ---- | N95: ---- | O95: ---- | P95: ---- | Q95: ---- | R95: ---- | S95: ---- | T95: ---- | U95: ---- | V95: ---- | W95: ---- | X95: |

Sheet 26
A1: Exam: | B1: BattleActs 6C Practice Exam 1 (2018.Fall) | L1: | | M1: Exam: | N1: BattleActs 6C Practice Exam 1 (2018.Fall) - [ANSWER SHEET] | X1: |
A2: Question: | B2: 26 | L2: | | M2: Answer: | N2: =B2 -> 26 | X2: |
A3: Points: | B3: 2.25 | C3: points | L3: | | M3: Points: | N3: =B3 -> 2.25 | O3: points | X3: |
L4: | | X4: |
B5: a. | C5: (0.5 points) | L5: | | M5: Source: | N5: CIA.Mat | X5: |
L6: | | X6: |
C7: State the definition of materiality. | L7: | | M7: (0.5 points) | N7: a. | O7: An omission / under-statement / over-statement is material… | X7: |
L8: | | O8: ...if the actuary expects it to materially affect the user's decision-making or | X8: |
B9: b. | C9: (1 point) | L9: | | O9: reasonable expectations | X9: |
L10: | | X10: |
C11: Based on company characteristics, which company would you expect to have a more | L11: | | M11: (1 point) | N11: b. | O11: Scenario 1: | X11: |
C12: rigorous materiality level in each of these scenarios (more rigorous means lower.) | L12: | | O12: Company B should have a more rigorous materiality level. It has a smaller surplus, so | X12: |
C13: Briefly explain. | L13: | | O13: smaller swings in surplus would have a proportionately greater impact on Company B's | X13: |
L14: | | O14: decision-making. | X14: |
C15: Scenario 1: | L15: | | X15: |
C16: Company A has a surplus of 100 million | L16: | | O16: Scenario 2: | X16: |
C17: Company B has a surplus of 20 million | L17: | | O17: Company D should have a more rigorous materiality level. It is a much newer company, | X17: |
L18: | | O18: with less historical data and less established management. Operations should be monitored | X18: |
C19: Scenario 2: | L19: | | O19: more closely for any signs of trouble. Smaller swings in financial metrics would have a | X19: |
C20: Company C started operation in 1920 | L20: | | O20: proportionately greater impact on Company D's decision-making. | X20: |
C21: Company D started operation in 2010 | L21: | | X21: |
L22: | | O22: Note: | X22: |
B23: c. | C23: (0.75 points) | L23: | | O23: This question was a "Bloom's Taxonomy" way of asking about the 6 company | X23: |
L24: | | O24: characteristics that should be considered in setting the materiality level. | X24: |
C25: Identify considerations regarding the disclosure of materiality in actuarial | L25: | | O25: Remember (F-STARS)? Here we used the 2 S's: Size, Stage in life cycle. | X25: |
C26: communications. | L26: | | O26: If you don't remember, review the materiality wiki article CIA.Mat. | X26: |
L27: | | X27: |
L28: | | M28: (0.75 points) | N28: c. | O28: I told you in the wiki article on materiality that if I were creating the exam, I would ask this | X28: |
L29: | | O29: question. Did you listen to me??!!! [Hint: SIC] | X29: |
L30: | | X30: |
L31: | | O31: Sophistication of the user | X31: |
L32: | | O32: Importance of the concept of materiality to the user | X32: |
L33: | | O33: Complexity of the information (KISS - Keep it Simple Stupid) | X33: |
L34: | | X34: |
L35: | | X35: |
L36: | | X36: |
L37: | | X37: |
L38: | | X38: |
L39: | | X39: |
L40: | | X40: |
L41: | | X41: |
L42: | | X42: |
L43: | | X43: |
L44: | | X44: |
L45: | | X45: |
L46: | | X46: |
L47: | | X47: |
A48: ---- | B48: ---- | C48: ---- | D48: ---- | E48: ---- | F48: ---- | G48: ---- | H48: ---- | I48: ---- | J48: ---- | K48: ---- | L48: | | M48: ---- | N48: ---- | O48: ---- | P48: ---- | Q48: ---- | R48: ---- | S48: ---- | T48: ---- | U48: ---- | V48: ---- | W48: ---- | X48: |
L49: | | X49: |
L50: | | X50: |
L51: | | X51: |
L52: | | X52: |
L53: | | X53: |
L54: | | X54: |
L55: | | X55: |
L56: | | X56: |
L57: | | X57: |
L58: | | X58: |
L59: | | X59: |
L60: | | X60: |
L61: | | X61: |
L62: | | X62: |
L63: | | X63: |
L64: | | X64: |
L65: |
L66: |
L67: |
L68: |
L69: |
L70: |
L71: |
L72: |
L73: |
L74: |
L75: |
L76: |
L77: |
L78: |
L79: |
L80: |
L81: |
L82: |
L83: |
L84: |
L85: |
L86: |
L87: |
L88: |
L89: |
L90: |
L91: |
L92: |
L93: |
L94: |
A95: ---- | B95: ---- | C95: ---- | D95: ---- | E95: ---- | F95: ---- | G95: ---- | H95: ---- | I95: ---- | J95: ---- | K95: ---- | L95: | | M95: ---- | N95: ---- | O95: ---- | P95: ---- | Q95: ---- | R95: ---- | S95: ---- | T95: ---- | U95: ---- | V95: ---- | W95: ---- | X95: |

Sheet 27
A1: Exam: | B1: BattleActs 6C Practice Exam 1 (2018.Fall) | L1: | | M1: Exam: | N1: BattleActs 6C Practice Exam 1 (2018.Fall) - [ANSWER SHEET] | X1: |
A2: Question: | B2: 27 | L2: | | M2: Answer: | N2: =B2 -> 27 | X2: |
A3: Points: | B3: 1.75 | C3: points | L3: | | M3: Points: | N3: =B3 -> 1.75 | O3: points | X3: |
L4: | | X4: |
B5: a. | C5: (0.25 points) | L5: | | M5: Source: | N5: CIA.Subseq | X5: |
L6: | | X6: |
C7: Define the term 'subsequent event'. | L7: | | M7: (0.25 points) | N7: a. | O7: subsequent event: | X7: |
L8: | | O8: - an event the AA becomes aware of after the calculation date but before the report date | X8: |
B9: b. | C9: (1.5 points) | L9: | | X9: |
L10: | | M10: (1.5 points) | N10: b. | O10: i | P10: - actuary became aware after the CalcDt but before the RptDt, therefore this | X10: |
C11: The Appointed Actuary of a property and casualty insurance company is valuing policy | L11: | | P11: is a subsequent event and we're on the middle branch | X11: |
C12: liabilities as at December 31, 2017. The report date is February 22, 2018. For each of | L12: | | P12: - Error: no | X12: |
C13: the following scenarios, briefly discuss the actions that the Appointed Actuary should take. | L13: | | P13: - When did event occur: after CalcDt | X13: |
L14: | | P14: - Different (did the event make the entity different?): yes, after CalcDt | X14: |
C15: i | D15: A severe winter storm occurred on Jan 15, 2017. | L15: | | P15: - Purpose: report on entity as it was | X15: |
L16: | | P16: --> inform only (assuming the event is material) | X16: |
C17: ii | D17: On Feb 1, the IT department notified the actuary regarding a significant volume | L17: | | X17: |
D18: of claims missing from the 2017 claims database. | L18: | | O18: ii | P18: - actuary became aware after the CalcDt but before the RptDt, therefore this | X18: |
L19: | | P19: is a subsequent event and we're on the middle branch | X19: |
C20: iii | D20: In this part, suppose the company is a reinsurer. A case reserve increase by the | L20: | | P20: - Error: yes | X20: |
D21: ceding insurer was not reported to the appointed actuary at the reinsurer | L21: | | P21: --> reflect in report (assuming the event was material) | X21: |
D22: until Feb 5. | L22: | | X22: |
L23: | | O23: iii | P23: - actuary became aware after the CalcDt but before the RptDt, therefore this | X23: |
L24: | | P24: is a subsequent event and we're on the middle branch | X24: |
L25: | | P25: - Error: no | X25: |
L26: | | P26: - When did event occur: before CalcDt | X26: |
L27: | | P27: --> reflect in report (assuming the event was material) | X27: |
L28: | | X28: |
L29: | | X29: |
L30: | | X30: |
L31: | | X31: |
L32: | | X32: |
L33: | | X33: |
L34: | | X34: |
L35: | | X35: |
L36: | | X36: |
L37: | | X37: |
L38: | | X38: |
L39: | | X39: |
L40: | | X40: |
L41: | | X41: |
L42: | | X42: |
L43: | | X43: |
L44: | | X44: |
L45: | | X45: |
L46: | | X46: |
L47: | | X47: |
A48: ---- | B48: ---- | C48: ---- | D48: ---- | E48: ---- | F48: ---- | G48: ---- | H48: ---- | I48: ---- | J48: ---- | K48: ---- | L48: | | M48: ---- | N48: ---- | O48: ---- | P48: ---- | Q48: ---- | R48: ---- | S48: ---- | T48: ---- | U48: ---- | V48: ---- | W48: ---- | X48: |
L49: | | X49: |
L50: | | X50: |
L51: | | X51: |
L52: | | X52: |
L53: | | X53: |
L54: | | X54: |
L55: | | X55: |
L56: | | X56: |
L57: | | X57: |
L58: | | X58: |
L59: | | X59: |
L60: | | X60: |
L61: | | X61: |
L62: | | X62: |
L63: | | X63: |
L64: | | X64: |
L65: |
L66: |
L67: |
L68: |
L69: |
L70: |
L71: |
L72: |
L73: |
L74: |
L75: |
L76: |
L77: |
L78: |
L79: |
L80: |
L81: |
L82: |
L83: |
L84: |
L85: |
L86: |
L87: |
L88: |
L89: |
L90: |
L91: |
L92: |
L93: |
L94: |
A95: ---- | B95: ---- | C95: ---- | D95: ---- | E95: ---- | F95: ---- | G95: ---- | H95: ---- | I95: ---- | J95: ---- | K95: ---- | L95: | | M95: ---- | N95: ---- | O95: ---- | P95: ---- | Q95: ---- | R95: ---- | S95: ---- | T95: ---- | U95: ---- | V95: ---- | W95: ---- | X95: |

Sheet 28
A1: Exam: | B1: BattleActs 6C Practice Exam 1 (2018.Fall) | L1: | | M1: Exam: | N1: BattleActs 6C Practice Exam 1 (2018.Fall) - [ANSWER SHEET] | X1: |
A2: Question: | B2: 28 | L2: | | M2: Answer: | N2: =B2 -> 28 | X2: |
A3: Points: | B3: 2.75 | C3: points | L3: | | M3: Points: | N3: =B3 -> 2.75 | O3: points | X3: |
L4: | | X4: |
B5: a. | C5: (1 point) | L5: | | M5: Source: | N5: OSFI.AA | X5: |
L6: | | X6: |
C7: Briefly describe 4 qualifications that OSFI expects an appointed actuary to possess. | L7: | | M7: (1 point) | N7: a. | O7: OSFI's expectations: | R7: See 2016.Spring #2a | X7: |
L8: | | O8: - must be FCIA with 3 years of Canadian experience in past 6 years (including 1 year of | X8: |
B9: b. | C9: (1 point) | L9: | | O9: valuation) | X9: |
L10: | | O10: - must have experience with CIA's SOPs (also insurance legislation & regulation) | X10: |
C11: Briefly describe 4 roles or duties of the Appointed Actuary (AA). | L11: | | O11: - must maintain professional development requirements | X11: |
L12: | | O12: - must have NO adverse findings with CIA disciplinary tribunal | X12: |
B13: c. | C13: (0.75 points) | L13: | | X13: |
L14: | | M14: (1 point) | N14: b. | O14: roles & duties: Any 4: | R14: See 2016.Fall #34c | X14: |
C15: Identify 3 objectives of a peer reviewer. | L15: | | O15: - perform valuation of policy liabilties at year-end using accepted actuarial practice | X15: |
L16: | | O16: - produce AA report | X16: |
L17: | | O17: - produce annual financial position report to Board of Directors | X17: |
L18: | | O18: - produce financial condition report when directed by OSFI, possibly using DCAT | X18: |
L19: | | O19: - produce MAE report (Material Adverse Event) for items requiring rectification | X19: |
L20: | | O20: - produce policyholder report on whether policyholders are treated fairly regarding | X20: |
L21: | | O21: dividends, bonuses, other benefits | X21: |
L22: | | O22: - final opinion/memo on financial statement items requiring significant calcs or judgment | X22: |
L23: | | X23: |
L24: | | M24: (0.75 point) | O24: Hint: AAC | R24: See 2016.Fall #27f | X24: |
L25: | | O25: Assist OSFI in assessing insurer safety & soundness | X25: |
L26: | | O26: Assist AA by providing independent advice and a source for professional development | X26: |
L27: | | O27: Confidence: increase confidence in the AA with management, public, regulators | X27: |
L28: | | X28: |
L29: | | X29: |
L30: | | X30: |
L31: | | X31: |
L32: | | X32: |
L33: | | X33: |
L34: | | X34: |
L35: | | X35: |
L36: | | X36: |
L37: | | X37: |
L38: | | X38: |
L39: | | X39: |
L40: | | X40: |
L41: | | X41: |
L42: | | X42: |
L43: | | X43: |
L44: | | X44: |
L45: | | X45: |
L46: | | X46: |
L47: | | X47: |
A48: ---- | B48: ---- | C48: ---- | D48: ---- | E48: ---- | F48: ---- | G48: ---- | H48: ---- | I48: ---- | J48: ---- | K48: ---- | L48: | | M48: ---- | N48: ---- | O48: ---- | P48: ---- | Q48: ---- | R48: ---- | S48: ---- | T48: ---- | U48: ---- | V48: ---- | W48: ---- | X48: |
L49: | | X49: |
L50: | | X50: |
L51: | | X51: |
L52: | | X52: |
L53: | | X53: |
L54: | | X54: |
L55: | | X55: |
L56: | | X56: |
L57: | | X57: |
L58: | | X58: |
L59: | | X59: |
L60: | | X60: |
L61: | | X61: |
L62: | | X62: |
L63: | | X63: |
L64: | | X64: |
L65: |
L66: |
L67: |
L68: |
L69: |
L70: |
L71: |
L72: |
L73: |
L74: |
L75: |
L76: |
L77: |
L78: |
L79: |
L80: |
L81: |
L82: |
L83: |
L84: |
L85: |
L86: |
L87: |
L88: |
L89: |
L90: |
L91: |
L92: |
L93: |
L94: |
A95: ---- | B95: ---- | C95: ---- | D95: ---- | E95: ---- | F95: ---- | G95: ---- | H95: ---- | I95: ---- | J95: ---- | K95: ---- | L95: | | M95: ---- | N95: ---- | O95: ---- | P95: ---- | Q95: ---- | R95: ---- | S95: ---- | T95: ---- | U95: ---- | V95: ---- | W95: ---- | X95: |
